Cogmind - Beta 12 @@@ ROGUE MODE // 2023.12.08 @ 00:37:27 Player: KTG-V3 Result: Destroyed by MAIN.C with Omega Cannon Performance ------------- Evolutions (9) 4500 Regions Visited (32) 6400 Robots Destroyed (467) 2335 Value Destroyed (18926) 18926 Prototype IDs (107) 2140 Alien Tech Used (12) 2400 Bonus (24848) 24848 TOTAL SCORE: 61549 Bonus ------- High Alert Combat Kills 1398 Follower Combat Kills 2907 Network Hubs Disabled 400 Met Data Miner 300 Met Zhirov 300 Met Warlord at Base 500 MAIN.C Attacked Warlord 500 Met R17 at Cetus 500 Met R17 at Research 2000 Met Warlord at Research 2000 Invited to Help at Command 2000 Destroyed MAIN.C Guards 500 Met MAIN.C 5000 Destroyed MAIN.C Shell 5000 Met Warlord at Command 2000 Friendly Fire -457 Cogmind --------- Core Integrity 0/1600 Matter 300/300 Energy 99/100 System Corruption 23% Temperature Cool (0) Movement Core (50) Location -1/Command Parts ------- > --- POWER (3) -------- (None) > --- PROPULSION (8) --- (None) > --- UTILITY (11) ----- Advanced Melee Analysis Suite Experimental Melee Analysis Suite Experimental Core Analyzer Improved Armor Integrity Analyzer Nanoactuators Graphene Brace > --- WEAPON (3) ------- (None) > --- INVENTORY (7) ---- Improved Antigrav System Experimental Utility Shielding Peak State ------------ > --- POWER ------------ Improved Quantum Reactor Vortex Chain Reactor > --- PROPULSION ------- Combat Antigrav System Combat Antigrav System Combat Antigrav System Combat Antigrav System Combat Antigrav System Combat Antigrav System Cooled Linear Gravjet Combat Linear Gravjet > --- UTILITY ---------- High-capacity Storage Unit Experimental Melee Analysis Suite Advanced Transmission Jammer Experimental Reaction Control System Advanced Phase Shifter Experimental Utility Shielding Heavy Regenerative Plating Graphene Brace Advanced Hacking Suite System Mapper > --- WEAPON ----------- Sigix Broadsword Plasma Lance > --- INVENTORY -------- Quantum Reactor Antigrav System Improved Antigrav System Improved Antigrav System Combat Antigrav System Experimental Coolant Injector Experimental Matter Compressor Quantum Shading Machine Advanced Melee Analysis Suite Experimental Core Analyzer Improved Armor Integrity Analyzer Nanoactuators Nanoactuators Advanced Force Field AEGIS Remote Shield Authchip [Propulsion] Transdimensional Reconstructor Transdimensional Reconstructor Integrity Redistributor Cooled Nova Cannon Improved Plasma Cutter Plasma Lance [Rating: 231] Favorites ----------- Power F-cell Engine Engine F-cell Engine Power Core Enhanced Fission Core Reactor Improved Quantum Reactor Propulsion Combat Antigrav System Treads Light Treads Hover Unit Combat Antigrav System Flight Unit Improved Flight Unit Utility Improved Hacking Suite Device Long-range Sensor Array Storage High-capacity Storage Unit Processor Advanced Signal Interpreter Hackware Improved Hacking Suite Protection Experimental Utility Shielding Artifact Phase Redirector Weapon Advanced Beam Cannon Energy Gun Heavy Particle Gun Energy Cannon Advanced Beam Cannon Ballistic Gun Assault Rifle Ballistic Cannon Heavy Assault Cannon Launcher Heavy Missile Launcher Slashing Weapon Sigix Broadsword Piercing Weapon Plasma Lance Special Melee Weapon Advanced Datajack Build | -11 -10 -10 -9 -9 -8 -7 -7 -7 -7 -6 -6 -6 -6 -6 -6 -5 -5 -5 -5 -4 -4 -4 -4 -4 -3 -3 -3 -3 -2 -2 -1 -1 ------- Run | Jun Mat Min Mat Min Mat Fac Low Low Dat Pro Fac Ext Cet Arc Hub Fac Upp Upp Zhi Pro Fac Upp Upp War Pro Res Qua Sec Res Tes Acc Com Slots Evolved 18 | . . . 2 . 2 2 . . . . 2 . . . . 2 . . . . 2 . . . . 2 . . 2 . 2 . Power 2 | . . . . . . . . . . . . . . . . . . . . . 1 . . . . . . . . . 1 . Propulsion 6 | . . . 1 . . 1 . . . . . . . . . 1 . . . . 1 . . . . 1 . . 1 . . . Utility 9 | . . . 1 . 2 1 . . . . 2 . . . . 1 . . . . . . . . . 1 . . . . 1 . Weapon 1 | . . . . . . . . . . . . . . . . . . . . . . . . . . . . . 1 . . . Parts Attached 1053 | 6 15 5 50 3 53 61 20 6 . 2 124 33 41 25 8 119 14 4 9 9 112 5 7 23 5 10 37 100 29 42 18 58 Power 58 | . 3 1 6 . 8 5 . . . . 3 1 3 4 . 5 . . . . 7 . . 1 1 . . 2 5 . 1 2 Engine 23 | . 3 1 6 . 6 1 . . . . . . . 3 . 3 . . . . . . . . . . . . . . . . Core 22 | . . . . . 2 4 . . . . 3 1 . . . 2 . . . . 6 . . 1 1 . . 1 1 . . . Reactor 13 | . . . . . . . . . . . . . 3 1 . . . . . . 1 . . . . . . 1 4 . 1 2 Propulsion 163 | 2 7 . 22 1 12 16 3 3 . . 18 2 4 5 2 19 . . 2 . 11 . . 4 . 2 4 7 3 9 2 3 Treads 44 | 2 7 . 21 1 9 . . . . . . . 4 . . . . . . . . . . . . . . . . . . . Leg . | . . . . . . . . . . . . . . . . . . . . . . . . . . . . . . . . . Wheel . | . . . . . . . . . . . . . . . . . . . . . . . . . . . . . . . . . Hover 118 | . . . . . 3 16 3 3 . . 18 2 . 5 2 19 . . 2 . 11 . . 4 . 2 4 7 3 9 2 3 Flight 1 | . . . 1 . . . . . . . . . . . . . . . . . . . . . . . . . . . . . Utility 581 | 2 4 1 10 2 19 31 7 . . . 75 15 20 10 3 55 11 4 4 8 77 4 4 7 2 8 27 76 16 25 14 40 Device 389 | 1 3 1 6 2 7 15 4 . . . 43 8 12 5 1 32 7 3 3 6 48 2 4 4 2 7 20 65 11 23 14 30 Storage 10 | 1 1 . 1 . 1 . . . . . 1 1 . . . 1 . . . . 1 . . . . . 1 . . . . 1 Processor 23 | . . . 1 . 4 2 . . . . 3 1 . . . 1 1 . . . 1 . . 2 . . . 1 3 . . 3 Hackware 34 | . . . . . 1 5 . . . . 7 1 . 4 1 5 . . . . 5 1 . 1 . . . . . . . 3 Protection 122 | . . . 2 . 6 9 3 . . . 21 4 8 1 1 16 3 1 1 2 22 1 . . . 1 4 9 2 2 . 3 Artifact 3 | . . . . . . . . . . . . . . . . . . . . . . . . . . . 2 1 . . . . Weapon 251 | 2 1 3 12 . 14 9 10 3 . 2 28 15 14 6 3 40 3 . 3 1 17 1 3 11 2 . 6 15 5 8 1 13 Energy Gun 19 | 1 1 2 2 . 7 . . . . . . . 4 1 . . . . . . . . . . . . . . . 1 . . Energy Cannon 58 | . . . 9 . 4 . . . . . . . . . . 12 1 . 2 1 6 . . 1 1 . 3 7 1 3 . 7 Ballistic Gun 15 | 1 . . . . . . . . . . . . 5 3 . 6 . . . . . . . . . . . . . . . . Ballistic Cannon 50 | . . . . . . 3 4 2 . 1 12 7 . 1 1 14 1 . . . 2 . . 2 . . . . . . . . Launcher 26 | . . 1 1 . 2 3 3 . . . 3 . 4 . 2 1 . . 1 . 2 1 1 1 . . . . . . . . Special Weapon . | . . . . . . . . . . . . . . . . . . . . . . . . . . . . . . . . . Impact Weapon . | . . . . . . . . . . . . . . . . . . . . . . . . . . . . . . . . . Slashing Weapon 60 | . . . . . 1 3 3 1 . 1 13 8 1 . . 7 1 . . . 4 . 2 2 . . 3 7 1 1 . 1 Piercing Weapon 22 | . . . . . . . . . . . . . . . . . . . . . 3 . . 5 1 . . 1 3 3 1 5 Special Melee Weapon 1 | . . . . . . . . . . . . . . 1 . . . . . . . . . . . . . . . . . . Unidentified Prototypes 60 | . . . 3 . 5 3 . . . . 2 . 4 . . 2 . . 2 . 8 . . 9 . . 4 6 6 5 . 1 Corrupted Parts 6 | . . . . . . . . . . . . . 3 1 . . . . . . . . . . . . . 2 . . . . System Corruption 39 | . . . . . . . . . . . . . 22 2 . . . . . . . . . . . . . 15 . . . . Parts Lost 52 | . . . 4 . 5 5 3 . . . 3 . 5 . 4 . . . . . 1 . . . . . . 1 . . . 21 Power 6 | . . . . . 1 1 . . . . 1 . . . . . . . . . . . . . . . . . . . . 3 Propulsion 28 | . . . 3 . 2 4 2 . . . 1 . 2 . 4 . . . . . . . . . . . . 1 . . . 9 Utility 13 | . . . . . 2 . 1 . . . 1 . 2 . . . . . . . 1 . . . . . . . . . . 6 Weapon 5 | . . . 1 . . . . . . . . . 1 . . . . . . . . . . . . . . . . . . 3 Highest Loss Streak 17 | . . . 2 . 2 5 1 . . . 1 . 3 . 4 . . . . . 1 . . . . . . 1 . . . 17 To Critical Strikes 2 | . . . . . . . . . . . . . 2 . . . . . . . . . . . . . . . . . . . Average Slot Usage (%) 94 | . 99 100 99 100 98 95 90 92 92 92 91 91 80 83 84 89 98 99 94 99 98 100 100 99 99 99 94 92 90 90 88 87 Engine 4 | . 13 14 10 11 5 . . . . . . . . 1 4 1 5 5 5 5 5 5 5 5 5 4 4 2 . . . . Core 2 | . . . . . 3 6 7 7 7 7 5 6 . . . 3 . . . . 4 5 5 5 4 4 4 3 . . . . Reactor 1 | . . . . . . . . . . . . . 5 4 . . . . . . . . . . . . . 1 7 8 8 7 Treads 8 | . 27 28 32 33 25 . . . . . . . 10 9 . . . . . . . . . . . . . . . . . . Hover 20 | . . . . . 1 29 29 30 30 30 25 26 3 6 23 24 29 29 29 29 30 31 31 31 31 32 32 32 34 33 32 31 Device 10 | . 14 14 20 22 18 6 3 . . . 5 5 19 12 3 5 5 5 3 5 4 5 5 4 5 8 12 12 7 8 12 12 Storage 6 | . 14 14 11 11 9 7 7 7 7 7 6 6 6 6 6 5 5 5 5 5 5 5 5 5 5 4 4 4 4 4 4 3 Processor 8 | . . . . . 7 15 15 15 15 15 13 13 13 13 13 11 11 11 11 11 10 10 10 10 10 9 9 9 8 8 8 8 Hackware 11 | . . . . . . 14 15 15 15 15 20 20 3 3 26 21 23 23 23 23 19 15 15 15 15 14 14 13 8 8 8 8 Protection 4 | . . . 1 . 8 . 3 7 7 7 4 5 5 14 2 5 4 4 6 4 5 9 10 10 10 9 5 4 8 7 8 7 Energy Gun 2 | . 14 14 1 . 8 . . . . . . . 5 2 . . . . . . . . . . . . . . . . . . Energy Cannon 3 | . . . 19 22 8 . . . . . . . . . . 2 4 5 . 4 3 . . . . . . . . . . . Ballistic Gun 1 | . 14 14 . . . . . . . . . . 3 6 . . . . . . . . . . . . . . . . . . Slashing Weapon 2 | . . . . . . 6 3 . . . 5 3 1 . . 2 4 5 5 5 2 5 4 4 5 4 3 3 4 3 4 3 Naked Turns . | . . . . . . . . . . . . . . . . . . . . . . . . . . . . . . . . . Heaviest Build 147 | 9 51 51 105 99 119 43 47 47 47 47 57 50 75 75 42 72 76 76 72 76 89 81 81 90 82 83 94 118 112 125 130 147 Greatest Support 160 | 40 40 40 60 68 68 36 33 33 33 33 40 40 160 160 36 78 78 78 78 75 96 86 86 90 90 103 121 117 133 134 134 141 Greatest Overweight (x) 3 | . 1 1 1 1 1 1 1 1 1 1 1 1 1 2 1 3 . . . 1 1 . . 1 . . . 1 . . . 1 Average Overweight (x) . | . . 1 1 1 1 . . 1 1 1 . . . . . . . . . . . . . . . . . . . . . . Largest Inventory Capacity 25 | 8 20 20 25 25 25 15 15 15 15 15 15 15 15 15 15 20 20 20 20 20 20 20 20 20 20 20 20 22 22 22 22 22 Average Capacity 19 | 7 17 20 24 25 24 15 15 15 15 15 15 15 15 15 15 15 20 20 20 20 20 20 20 20 20 20 20 20 22 22 22 20 Most Carried 25 | 7 20 20 25 25 25 15 15 15 15 15 15 15 15 15 15 18 20 20 20 20 20 20 20 20 20 20 20 22 22 22 22 22 Average Carried 18 | 4 16 20 23 24 24 14 13 14 15 14 14 14 14 14 14 13 18 19 19 19 18 19 19 19 20 19 19 19 21 21 21 19 Final Capacity 25 | 8 20 20 25 25 15 15 15 15 15 15 15 15 15 15 15 20 20 20 20 20 20 20 20 20 20 20 20 22 22 22 22 7 Final Carried 25 | 7 20 20 25 25 13 15 13 15 15 15 14 15 15 15 13 18 20 20 20 20 19 20 20 20 20 20 20 22 22 22 22 2 Class Distribution -------------------- 37% | Hacker-Scout 20% | Scavenger-Mutant 11% | Mutant 10% | Hacker-Mutant 7% | Hacker-Gladiator Dominant Class ---------------- Mutant | -10/Materials Scavenger-Mutant | -10/Mines Scavenger-Mutant | -9/Materials Scavenger-Mutant | -9/Mines Mutant | -8/Materials Hacker-Scout | -7/Factory Hacker-Mutant | -7/Lower Caves Hacker-Mutant | -7/Lower Caves Hacker-Mutant | -7/Data Miner Hacker-Mutant | -6/Proximity Caves Hacker-Scout | -6/Factory Commander-Scout | -6/Extension Scavenger-Mutant | -6/Cetus Scavenger-Mutant | -6/Archives Hacker-Mutant | -6/Hub_04(d) Hacker-Scout | -5/Factory Hacker-Scout | -5/Upper Caves Hacker-Scout | -5/Upper Caves Hacker-Scout | -5/Zhirov Hacker-Scout | -4/Proximity Caves Hacker-Scout | -4/Factory Hacker-Scout | -4/Upper Caves Hacker-Scout | -4/Upper Caves Hacker-Scout | -4/Warlord Hacker-Scout | -3/Proximity Caves Hacker-Scout | -3/Research Hacker-Scout | -3/Quarantine Hacker-Scout | -3/Section 7 Machinist-Gladiator | -2/Research Hacker-Gladiator | -2/Testing Hacker-Gladiator | -1/Access Hacker-Gladiator | -1/Command Resources | -11 -10 -10 -9 -9 -8 -7 -7 -7 -7 -6 -6 -6 -6 -6 -6 -5 -5 -5 -5 -4 -4 -4 -4 -4 -3 -3 -3 -3 -2 -2 -1 -1 ----------- Run | Jun Mat Min Mat Min Mat Fac Low Low Dat Pro Fac Ext Cet Arc Hub Fac Upp Upp Zhi Pro Fac Upp Upp War Pro Res Qua Sec Res Tes Acc Com Matter Collected 14254 | 281 405 105 555 38 562 819 426 112 . 76 1653 772 631 578 . 1983 286 81 99 141 1263 51 216 230 50 100 349 960 145 264 107 916 Remotely . | . . . . . . . . . . . . . . . . . . . . . . . . . . . . . . . . . Salvage Created 22899 | 112 900 184 1739 37 2859 1054 342 193 . 173 1535 236 446 633 55 1857 196 195 218 23 1663 . 20 . 108 794 545 2101 457 834 887 2503 Parts 1158 | 8 61 12 98 6 136 81 17 3 . 5 70 11 26 35 11 98 3 9 4 3 62 . 4 . 6 25 37 115 15 44 49 104 Haulers Intercepted 34 | . 2 . 6 . 6 3 . . . . 5 . . . . 1 . . . . 3 . . . . 3 . . 4 1 . . Recyclers Shooed 11 | 1 1 . 1 . 2 2 . . . . . . . . . 3 . . . . . . . . . 1 . . . . . . Parts Field Recycled . | . . . . . . . . . . . . . . . . . . . . . . . . . . . . . . . . . Retrieved Matter . | . . . . . . . . . . . . . . . . . . . . . . . . . . . . . . . . . Parts Self-Destructed 63 | . . . . . . . 24 3 . 7 . . . . . . 2 10 4 7 . . 3 . 3 . . . . . . . Prevented 6 | . . . . . . . . . . . . . . . . . 1 1 . 1 . . . . 3 . . . . . . . Kills | -11 -10 -10 -9 -9 -8 -7 -7 -7 -7 -6 -6 -6 -6 -6 -6 -5 -5 -5 -5 -4 -4 -4 -4 -4 -3 -3 -3 -3 -2 -2 -1 -1 ------- Run | Jun Mat Min Mat Min Mat Fac Low Low Dat Pro Fac Ext Cet Arc Hub Fac Upp Upp Zhi Pro Fac Upp Upp War Pro Res Qua Sec Res Tes Acc Com Combat Hostiles Destroyed 299 | . 19 6 34 1 40 11 17 1 . 2 15 4 16 4 6 14 . 1 . 2 12 . 4 . 1 5 10 25 . 8 10 31 Melee 98 | . . . . . . 7 . . . . 1 . 1 . . . . . . 1 5 . 1 . 1 5 10 24 . 8 10 24 Guns 54 | . 19 4 3 . 20 . . . . . . . 3 4 . 1 . . . . . . . . . . . . . . . . Cannons 86 | . . . 26 1 14 4 6 1 . 2 9 4 . . . 12 . . . 1 6 . . . . . . . . . . . AOE 51 | . . 2 3 . 3 . 11 . . . 5 . 12 . 6 . . . . . . . 3 . . . . . . . . 6 Classes Destroyed 23 | 3 6 . 1 . 4 2 1 . . . . 1 . . 1 . 1 . . 1 . . . . . . 1 1 . . . . Worker 25 | 2 2 1 3 1 2 1 . . . . 1 . . . 1 3 . . . . 2 . . . . 2 . 1 . 2 . 1 Builder 6 | . . . . . . 3 . . . . . 1 . . . 2 . . . . . . . . . . . . . . . . Tunneler 4 | 1 . 1 . . . . . . . . . . . . . 1 . . . . . . . . . 1 . . . . . . Hauler 34 | . 2 . 6 . 6 3 . . . . 5 . . . . 1 . . . . 3 . . . . 3 . . 4 1 . . Recycler 24 | 1 . . 2 . 5 3 . . . . 3 . . . . 5 . . . . 3 . . . . . 1 . . . . 1 Minesweeper 4 | . . . . . . . 1 . . . . . . . . . 1 1 . . . . . . 1 . . . . . . . Mechanic 3 | . 1 . 1 . . . . . . . . . . . . . . . . . . . . . . . . . . 1 . . Operator 24 | . 2 . 1 . 2 6 . . . . 1 . . 9 . . . . . . . . . . . 1 . 1 . . . 1 Drone 2 | . . . . . . . . . . . . . . . . . . . . 2 . . . . . . . . . . . . Watcher 52 | . 3 . 4 . 5 2 . . . . 5 2 1 . . 7 . . . . 5 . . . . 1 2 5 1 3 4 2 Swarmer 66 | . 3 3 14 1 . 3 8 . . . 4 . 10 . 2 . . . . . 1 . 4 . . . . 3 . . . 10 Cutter 4 | . . . . . . . . . . . . . . . 4 . . . . . . . . . . . . . . . . . Grunt 87 | . 16 3 10 . 24 4 7 1 . 1 5 2 2 . . 1 . . . . 3 . . . . 3 . . . . . 5 Brawler 1 | . . . . . . . . . . . . . 1 . . . . . . . . . . . . . . . . . . . Duelist 6 | . . . . . 2 . . . . . 2 . . . . 1 . 1 . . . . . . . . . . . . . . Sentry 48 | . . . 10 . 10 1 2 . . . . 1 . 4 . 5 . . . . 1 . . . 1 1 . 8 . . 1 3 Specialist 1 | . . . . . 1 . . . . . . . . . . . . . . . . . . . . . . . . . . . Hunter 19 | . . . . . 2 . . . . . . . . . . . . . . . . . . . . 1 . 4 . 3 3 6 Programmer 48 | . . . . . . 3 . . . 1 3 . . . . 7 . . . . 7 . . . . . 4 7 . 5 6 5 Heavy 2 | . . . . . 1 . . . . . 1 . . . . . . . . . . . . . . . . . . . . . Cetus Guard 3 | . . . . . . . . . . . . . 3 . . . . . . . . . . . . . . . . . . . S7 Guard 1 | . . . . . . . . . . . . . . . . . . . . . . . . . . . . 1 . . . . M Guard 1 | . . . . . . . . . . . . . . . . . . . . . . . . . . . . . . . . 1 Executioner 2 | . . . . . . . . . . . . . . . . . . . . . . . . . . . . 2 . . . . Samaritan 1 | . . . . . . . . . . . . . . . . . 1 . . . . . . . . . . . . . . . Assembled 6 | . . . . . . . . . . . . . . . . . . . . . . . . . . . 6 . . . . . Thug 1 | . . . . . . . . . . . . . . . . . . 1 . . . . . . . . . . . . . . Savage 2 | . . . . . . . . . . . . 1 . . . . 1 . . . . . . . . . . . . . . . Best Kill Streak 10 | 2 5 3 6 1 6 4 10 1 . 1 4 2 8 4 7 3 1 1 . 2 3 . 4 . 1 3 6 5 2 3 3 6 Combat Bots Only 9 | . 5 3 6 1 6 4 9 1 . 1 4 2 7 2 6 2 . 1 . 2 2 . 4 . 1 2 6 4 . 3 3 6 Max Kills in Single Turn 6 | 2 2 2 3 1 2 1 4 1 . 1 4 2 4 1 5 2 1 1 . 1 1 . 2 . 1 1 1 1 1 1 1 6 Gunslinging 1 | . 1 . . . . . . . . . . . . . . . . . . . . . . . . . . . . . . . Exploded 6 | . . 2 3 . 2 . 4 . . . 4 . 4 . 4 . . . . . . . 2 . . . . . . . . 6 Melee 1 | . . . . . . 1 . . . . 1 . 1 . . . . . . 1 1 . 1 . 1 1 1 1 . 1 1 1 Uniques/NPCs Destroyed 1 | . . . . . . . . . . . . . . . . . . . . . . . . . . . . . . . . 1 MAIN.C Shell (-1/Command) Combat | -11 -10 -10 -9 -9 -8 -7 -7 -7 -7 -6 -6 -6 -6 -6 -6 -5 -5 -5 -5 -4 -4 -4 -4 -4 -3 -3 -3 -3 -2 -2 -1 -1 -------- Run | Jun Mat Min Mat Min Mat Fac Low Low Dat Pro Fac Ext Cet Arc Hub Fac Upp Upp Zhi Pro Fac Upp Upp War Pro Res Qua Sec Res Tes Acc Com Damage Taken 26508 | . 692 169 1441 36 2531 1153 653 . . 16 835 359 2751 370 569 783 70 . . 17 1067 . 81 . 36 334 786 1847 208 1017 562 8125 Core 3287 | . 121 66 156 12 176 109 123 . . . 138 46 411 25 215 113 . . . . . . . . . 29 47 107 . 44 47 1302 Absorbed by Shields 3426 | . . . . . . . . . . . . . . . . . . . . . . . . . 37 . 53 783 . 360 436 1757 Redirected to Core 17 | . . . . . . . . . . . . . . . . . . . . . . . . . . . . 17 . . . . Redirected to Shielding 743 | . . . . . . . . . . . 71 11 . . 63 20 . . . . 33 . . . . . 18 138 22 40 . 327 Regen/Repaired (Parts) 8753 | . 99 . 172 . 84 15 . . . . 372 . . . . 676 . . . . 445 . . 9 . . 711 1487 127 919 659 2978 Core Remaining (%) 70 | 100 . 25 . 58 68 . . . . 66 . . . . 1 . . . . 88 . . . . 100 . . 100 . 96 . . Volleys Fired 870 | 7 85 16 109 4 155 35 26 2 . 7 56 37 38 41 4 120 13 2 . 2 60 . 4 1 . . 5 14 1 5 . 21 Largest 2 | 2 2 2 2 2 2 1 1 1 . 1 1 1 2 2 1 2 1 1 . 1 1 . 1 1 . . 1 1 1 1 . 1 Hottest 162 | 60 85 85 136 136 143 48 60 60 . 60 60 60 123 115 60 162 81 81 . 81 88 . 43 20 . . 113 113 113 50 . 94 Shots Fired 1286 | 14 160 31 217 8 304 35 26 2 . 7 56 37 42 78 4 134 13 4 . 3 60 . 4 1 . . 5 14 1 5 . 21 Gun 536 | 14 160 30 52 . 135 . . . . . . . 37 78 1 29 . . . . . . . . . . . . . . . . Cannon 725 | . . . 164 8 167 35 20 2 . 7 53 37 . . 1 105 13 4 . 3 60 . . . . . 5 14 1 5 . 21 Launcher 25 | . . 1 1 . 2 . 6 . . . 3 . 5 . 2 . . . . . . . 4 1 . . . . . . . . Special . | . . . . . . . . . . . . . . . . . . . . . . . . . . . . . . . . . Kinetic 482 | 7 85 15 11 . . 35 20 2 . 7 53 37 26 68 2 89 12 . . . 13 . . . . . . . . . . . Thermal 656 | 7 75 15 205 8 302 . . . . . . . 11 10 . . . . . . . . . . . . 3 7 1 5 . 7 Explosive 24 | . . 1 1 . 2 . 6 . . . 3 . 5 . 2 . . . . . . . 4 . . . . . . . . . Electromagnetic 123 | . . . . . . . . . . . . . . . . 45 1 4 . 3 47 . . . . . 2 7 . . . 14 Entropic 1 | . . . . . . . . . . . . . . . . . . . . . . . . 1 . . . . . . . . Robot Hit Streak 25 | 6 14 8 25 3 25 24 7 7 . 9 10 4 11 19 1 12 14 5 . 7 14 . 3 . . . . 10 . . . 6 Robot Miss Streak 7 | 3 7 1 5 1 3 3 1 . . 2 4 3 2 3 1 4 1 . . . 2 . . . . . . . . . . 1 Penetration Max 1 | . . . . . . . . . . . 1 1 . 1 . 1 . . . . . . . . . . . . . . . . Secondary Targets 6 | . 3 1 1 . 1 . . . . . . . . . . . . . . . . . . . . . . . . . . . Max Gunslinging Chain 1 | . 1 1 1 . 1 . . . . . . . . . . . . . . . . . . . . . . . . . . . Shots Hit Robots 1311 | 8 114 22 132 4 217 62 20 6 . 7 67 11 33 61 1 80 13 5 3 3 57 . 5 . 4 37 22 89 8 42 41 137 Core Hits 648 | 5 70 18 66 2 89 26 26 3 . 3 31 6 26 29 9 44 3 1 3 2 24 . 5 1 3 14 8 35 5 18 17 56 Critical Kills 10 | . . . 3 . 1 . . . . . . . 1 3 . 2 . . . . . . . . . . . . . . . . Critical Parts Destroyed 14 | . . . . . . . . . . . . . 4 5 . 5 . . . . . . . . . . . . . . . . Critical Strikes 82 | . . . 3 . 10 6 1 . . 1 7 2 5 9 . 12 2 . . . 4 . . . 1 4 . 7 . 2 1 5 Burn 9 | . . . . . 9 . . . . . . . . . . . . . . . . . . . . . . . . . . . Meltdown 4 | . . . 3 . 1 . . . . . . . . . . . . . . . . . . . . . . . . . . . Destroy 21 | . . . . . . . . . . . . . 5 9 . 7 . . . . . . . . . . . . . . . . Blast 17 | . . . . . . 2 1 . . 1 4 2 . . . 4 2 . . . 1 . . . . . . . . . . . Corrupt 2 | . . . . . . . . . . . . . . . . 1 . . . . 1 . . . . . . . . . . . Sever 19 | . . . . . . 4 . . . . 3 . . . . . . . . . . . . . . 1 . 7 . 1 1 2 Impale 10 | . . . . . . . . . . . . . . . . . . . . . 2 . . . 1 3 . . . 1 . 3 Melee Attacks 994 | . . . . . . 148 6 4 . 2 79 12 4 . . 28 7 6 3 5 83 2 11 4 5 52 57 145 29 71 63 168 Impact . | . . . . . . . . . . . . . . . . . . . . . . . . . . . . . . . . . Slashing 802 | . . . . . . 148 6 4 . 2 79 12 4 . . 28 7 6 3 5 57 1 9 4 1 10 54 143 12 49 53 105 Piercing 192 | . . . . . . . . . . . . . . . . . . . . . 26 1 2 . 4 42 3 2 17 22 10 63 Sneak Attacks 77 | . . . . . . 18 1 . . . 9 1 . . . 5 2 2 . . 10 . 1 . 2 12 2 1 4 5 . 2 Combat Hostiles 5 | . . . . . . . . . . . . 1 . . . . . . . . . . . . 1 3 . . . . . . Follow-up Attacks 35 | . . . . . . . . . . . . . . . . . . . . . 2 . . . 1 8 . . . 7 4 13 Damage Inflicted 62150 | 110 1472 398 2782 108 4822 3001 2123 293 . 418 3905 754 2108 1697 393 3541 796 315 239 122 3141 . 608 490 244 2290 2005 6633 669 3461 3105 10107 Guns 7313 | 110 1472 316 693 . 2077 . . . . . . . 717 1697 . 231 . . . . . . . . . . . . . . . . Cannons 13834 | . . . 1944 104 2476 513 794 64 . 289 1620 643 . . . 2670 498 58 . 90 1688 . . . . . . 123 . . . 260 Explosions 5642 | . . 82 145 . 269 . 1220 . . . 401 . 1322 . 393 . . . . . . . 414 490 . . . . . . . 906 Melee 35357 | . . . . . . 2488 109 229 . 129 1884 111 69 . . 640 298 257 239 32 1453 . 194 . 244 2290 2005 6510 669 3461 3105 8941 Ramming 4 | . . . . 4 . . . . . . . . . . . . . . . . . . . . . . . . . . . . Kinetic 9585 | 66 697 142 129 . . 513 794 64 . 289 1620 643 491 1375 . 1763 467 . . . 532 . . . . . . . . . . . Thermal 8761 | 44 775 174 2508 104 4553 . . . . . . . 226 322 . . . . . . . . . . . . . . . . . 55 Explosive 5152 | . . 82 145 . 269 . 1220 . . . 401 . 1322 . 393 . . . . . . . 414 . . . . . . . . 906 Electromagnetic 2801 | . . . . . . . . . . . . . . . . 1138 31 58 . 90 1156 . . . . . . 123 . . . 205 Impact . | . . . . . . . . . . . . . . . . . . . . . . . . . . . . . . . . . Slashing 29287 | . . . . . . 2488 109 229 . 129 1884 111 69 . . 640 298 257 239 32 1072 . 194 . 57 531 1917 6510 339 2817 2902 6463 Piercing 6070 | . . . . . . . . . . . . . . . . . . . . . 381 . . . 187 1759 88 . 330 644 203 2478 Entropic 490 | . . . . . . . . . . . . . . . . . . . . . . . . 490 . . . . . . . . Highest Corruption 28 | . . . . . 4 4 4 . . . 4 4 26 28 17 5 5 5 5 5 3 3 3 3 . . 4 21 1 5 7 23 Average Corruption 5 | . . . . . 3 3 3 . . . 2 4 7 22 15 3 5 5 5 5 2 3 3 3 . . 3 10 1 2 4 14 Corruption Purged 24 | . . . . . . . 4 . . . . . . 13 . . . . . . 1 . . . . . . 6 . . . . Corruption Blocked 3 | . . . . . . . . . . . . . . . . . . . . . . . . . . . . . 3 . . . Effects 523 | . . . . . 17 17 2 . . . 36 19 20 30 6 45 28 21 8 15 29 8 14 . . . 21 90 2 19 2 74 Message Errors 131 | . . . . . 7 3 1 . . . 5 2 3 5 1 13 10 7 2 4 11 . 3 . . . 9 22 . 5 1 17 Matter Fused 131 | . . . . . 3 5 1 . . . 12 5 5 8 . 11 8 3 3 4 4 5 6 . . . 5 16 . 6 1 20 Heat Flow Errors 54 | . . . . . 3 . . . . . 7 5 . 3 2 4 2 2 . . 1 1 4 . . . 3 9 . 1 . 7 Energy Discharges 61 | . . . . . 1 3 . . . . 6 3 3 1 1 6 2 3 . 2 6 . . . . . . 11 . 4 . 9 Parts Rejected 5 | . . . . . . 2 . . . . . . . 1 . . . . . . . . . . . . . 2 . . . . Parts Fused 6 | . . . . . . 1 . . . . . . 1 . . 1 1 . . . . . . . . . . . . . . 2 Data Loss (minor) 80 | . . . . . 1 3 . . . . 3 1 5 3 2 6 4 4 2 2 5 1 1 . . . 3 15 2 2 . 15 Data Loss (major) 21 | . . . . . . . . . . . 3 2 2 1 . 2 1 . 1 2 . . . . . . . 5 . 1 . 1 Misfires 8 | . . . . . 1 . . . . . . . . 1 . 2 . 2 . 1 1 . . . . . . . . . . . Alerts 10 | . . . . . . . . . . . . 1 . 2 . . . . . . . 1 . . . . 1 3 . . . 2 Misdirections 8 | . . . . . . . . . . . . . . . . . . . . . . . . . . . . 7 . . . 1 Weapon Failures 8 | . . . . . 1 . . . . . . . 1 5 . . . . . . 1 . . . . . . . . . . . Overload Shots . | . . . . . . . . . . . . . . . . . . . . . . . . . . . . . . . . . Overflow Damage 5481 | . . . 44 . 44 490 71 69 . 131 190 84 90 . . 308 111 125 . 6 543 . 108 21 . 262 548 371 140 571 403 751 Projectiles 834 | . . . 44 . 44 36 . . . 118 115 78 . . . 307 . . . 6 86 . . . . . . . . . . . Explosions 164 | . . . . . . . 22 . . . . . 90 . . . . . . . . . 4 21 . . . . . . . 27 Melee 4483 | . . . . . . 454 49 69 . 13 75 6 . . . 1 111 125 . . 457 . 104 . . 262 548 371 140 571 403 724 Knockbacks 27 | . . . . . . 3 2 . . 3 5 . . . . 9 . . . . 5 . . . . . . . . . . . Impact . | . . . . . . . . . . . . . . . . . . . . . . . . . . . . . . . . . Kinetic 26 | . . . . . . 3 2 . . 3 5 . . . . 9 . . . . 4 . . . . . . . . . . . Secondary 1 | . . . . . . . . . . . . . . . . . . . . . 1 . . . . . . . . . . . Self-Inflicted Damage 35 | . . . . . . . . . . . . . . . 35 . . . . . . . . . . . . . . . . . Shots 1 | . . . . . . . . . . . . . . . 1 . . . . . . . . . . . . . . . . . Rammed 1 | . . . . 1 . . . . . . . . . . . . . . . . . . . . . . . . . . . . Targets Rammed 1 | . . . . 1 . . . . . . . . . . . . . . . . . . . . . . . . . . . . Kicked . | . . . . . . . . . . . . . . . . . . . . . . . . . . . . . . . . . Crushed . | . . . . . . . . . . . . . . . . . . . . . . . . . . . . . . . . . Highest Temperature 415 | . 8 43 378 9 188 75 266 24 . 84 255 238 . 178 246 231 170 224 . 62 296 262 384 . . 5 218 415 . 65 . 184 Average Temperature 55 | . 4 26 54 6 42 18 50 13 . 39 37 42 . 82 90 47 48 75 . 25 67 154 110 . . 3 34 90 . 65 . 85 Received Heat Transfer 3254 | . 348 69 261 . 918 159 237 . . . 27 120 426 45 108 45 12 . . . 163 . . . 4 39 60 111 . . 4 98 Effects 12 | . . . 2 . . . . . . . 2 . . . . 3 . 2 . . . . . . . . . 3 . . . . Energy Bleed 1 | . . . . . . . . . . . . . . . . 1 . . . . . . . . . . . . . . . . Interference 9 | . . . . . . . . . . . 2 . . . . 2 . 2 . . . . . . . . . 3 . . . . Matter Decay 1 | . . . 1 . . . . . . . . . . . . . . . . . . . . . . . . . . . . . Short Circuit 1 | . . . 1 . . . . . . . . . . . . . . . . . . . . . . . . . . . . . Siege Activations 4 | . . . . . . . . . . . . . 1 3 . . . . . . . . . . . . . . . . . . Total Turns 141 | . . . . . . . . . . . . . 3 138 . . . . . . . . . . . . . . . . . . Longest Duration 76 | . . . . . . . . . . . . . 3 76 . . . . . . . . . . . . . . . . . . Robots Corrupted 7 | . . . . . . . . . . . . . . . . 1 1 1 . . 2 . . . . . . 1 . . . 1 Combat Hostiles 5 | . . . . . . . . . . . . . . . . 1 . 1 . . 1 . . . . . . 1 . . . 1 Parts Fried 24 | . . . . . . . . . . . . . . . . 8 1 1 . . 12 . . . . . . . . . . 2 Impact Corruptions . | . . . . . . . . . . . . . . . . . . . . . . . . . . . . . . . . . Robots Melted 6 | . . . 3 . 3 . . . . . . . . . . . . . . . . . . . . . . . . . . . Combat Hostiles 5 | . . . 2 . 3 . . . . . . . . . . . . . . . . . . . . . . . . . . . Parts Melted 38 | . 1 . 14 . 20 . 1 . . . . 1 . 1 . . . . . . . . . . . . . . . . . . Heat Transferred 15970 | 100 1410 305 4517 185 8806 . . . . . . . 259 370 . . . . . . . . . . . . . . . . . 18 Parts Sabotaged . | . . . . . . . . . . . . . . . . . . . . . . . . . . . . . . . . . Parts Stolen . | . . . . . . . . . . . . . . . . . . . . . . . . . . . . . . . . . Parts Stripped . | . . . . . . . . . . . . . . . . . . . . . . . . . . . . . . . . . Power Chain Reactions . | . . . . . . . . . . . . . . . . . . . . . . . . . . . . . . . . . Missiles Intercepted 16 | . . . . . . . . . . . . . . . . . . . . . . . . . . . . . . . . 16 Alert | -11 -10 -10 -9 -9 -8 -7 -7 -7 -7 -6 -6 -6 -6 -6 -6 -5 -5 -5 -5 -4 -4 -4 -4 -4 -3 -3 -3 -3 -2 -2 -1 -1 ------- Run | Jun Mat Min Mat Min Mat Fac Low Low Dat Pro Fac Ext Cet Arc Hub Fac Upp Upp Zhi Pro Fac Upp Upp War Pro Res Qua Sec Res Tes Acc Com Peak Influence 1279 | 20 333 172 518 235 609 500 . . . . 737 564 594 445 438 502 . . . . 488 . . . . 148 279 436 348 210 251 1279 Initial 360 | . 13 42 16 154 1 263 . . . . . 360 130 237 85 214 . . . . 150 . . . . 16 2 . 154 84 8 157 Average 254 | 3 88 26 271 61 318 341 . . . . 237 300 305 348 232 213 . . . . 308 . . . . 66 75 165 211 87 127 951 Maximum Alert Level 4 | . 1 . 2 1 2 2 . . . . 3 2 2 2 2 2 . . . . 2 . . . . . 1 2 1 1 1 4 Low Security (%) 47 | 100 82 100 31 84 33 13 . . . . 60 16 16 . 54 49 . . . . 10 . . . . 100 92 58 50 99 74 3 Level 1 32 | . 17 . 48 15 26 55 . . . . 8 62 65 57 21 37 . . . . 66 . . . . . 7 39 49 . 25 7 Level 2 16 | . . . 19 . 39 31 . . . . 28 21 17 42 24 12 . . . . 22 . . . . . . 1 . . . 12 Level 3 1 | . . . . . . . . . . . 3 . . . . . . . . . . . . . . . . . . . . 14 Level 4 3 | . . . . . . . . . . . . . . . . . . . . . . . . . . . . . . . . 62 Level 5 . | . . . . . . . . . . . . . . . . . . . . . . . . . . . . . . . . . High Security . | . . . . . . . . . . . . . . . . . . . . . . . . . . . . . . . . . Max Security . | . . . . . . . . . . . . . . . . . . . . . . . . . . . . . . . . . Squads Dispatched 124 | . 6 . 4 . 10 12 . . . . 15 3 . . 4 12 . . . . 14 . . . . 8 7 5 1 5 4 14 Investigation 36 | . 5 . 4 . 3 6 . . . . 7 . . . 3 5 . . . . 1 . . . . . . . . . . 2 Extermination 34 | . . . . . . 3 . . . . 5 . . . . 5 . . . . 4 . . . . . 4 4 . 3 2 4 Reinforcement 39 | . 1 . . . 4 3 . . . . 3 3 . . 1 2 . . . . 3 . . . . 8 3 1 1 2 2 2 Assault 9 | . . . . . . . . . . . . . . . . . . . . . 3 . . . . . . . . . . 6 Garrison 6 | . . . . . 3 . . . . . . . . . . . . . . . 3 . . . . . . . . . . . Intercept . | . . . . . . . . . . . . . . . . . . . . . . . . . . . . . . . . . Searches Triggered 1 | . . . . . . 1 . . . . . . . . . . . . . . . . . . . . . . . . . . Data Miner Redirects 23 | . . . . . . . . . . . 6 . . . 3 4 . . . . 2 . . . . . 2 . . . . 6 Construction Impeded 2 | . . . . . . . . . . . . 2 . . . . . . . . . . . . . . . . . . . . Haulers Reinforced 6 | . . . . . . 1 . . . . 1 . . . . 1 . . . . 1 . . . . 2 . . . . . . Active Scanning Responses . | . . . . . . . . . . . . . . . . . . . . . . . . . . . . . . . . . Cargo Convoy Interrupts . | . . . . . . . . . . . . . . . . . . . . . . . . . . . . . . . . . Stealth | -11 -10 -10 -9 -9 -8 -7 -7 -7 -7 -6 -6 -6 -6 -6 -6 -5 -5 -5 -5 -4 -4 -4 -4 -4 -3 -3 -3 -3 -2 -2 -1 -1 --------- Run | Jun Mat Min Mat Min Mat Fac Low Low Dat Pro Fac Ext Cet Arc Hub Fac Upp Upp Zhi Pro Fac Upp Upp War Pro Res Qua Sec Res Tes Acc Com Distress Signals 45 | . 2 . 1 . 3 2 . . . . 1 2 3 . . 3 . . . . 3 . . 1 . 8 . 2 9 1 . 4 Communications Jammed 42 | . . . . . . . . . . . . . . . . . . . . 2 . . . . . . 7 15 . 3 3 12 Distress Signals 40 | . . . . . . . . . . . . . . . . . . . . . . . . . . . 7 15 . 3 3 12 Times Spotted 692 | . 33 9 50 4 61 44 30 1 . 5 39 13 33 14 25 40 3 1 . 5 65 . 3 13 1 9 22 40 26 18 17 68 Peak Tracking Total 16 | . 5 3 7 3 5 8 8 1 . 1 5 3 8 2 16 6 1 1 . 3 6 . 4 9 1 3 5 4 7 3 4 9 Tactical Retreats 56 | . . 1 1 . 3 10 5 . . . 1 . 4 . 1 6 . . . . 7 . . . . . 4 1 8 . . 4 Traps | -11 -10 -10 -9 -9 -8 -7 -7 -7 -7 -6 -6 -6 -6 -6 -6 -5 -5 -5 -5 -4 -4 -4 -4 -4 -3 -3 -3 -3 -2 -2 -1 -1 ------- Run | Jun Mat Min Mat Min Mat Fac Low Low Dat Pro Fac Ext Cet Arc Hub Fac Upp Upp Zhi Pro Fac Upp Upp War Pro Res Qua Sec Res Tes Acc Com Traps Triggered 27 | . 1 . . 1 3 2 1 . . . 5 . . . . 4 . . . . 3 . 1 . . . 2 2 . . . 2 Indirectly . | . . . . . . . . . . . . . . . . . . . . . . . . . . . . . . . . . Trap Hack Attempts . | . . . . . . . . . . . . . . . . . . . . . . . . . . . . . . . . . Triggered . | . . . . . . . . . . . . . . . . . . . . . . . . . . . . . . . . . Disarmed 1 | . . . 1 . . . . . . . . . . . . . . . . . . . . . . . . . . . . . Reprogrammed . | . . . . . . . . . . . . . . . . . . . . . . . . . . . . . . . . . Reused 7 | . . . . . . . . . . . . . 5 . . . . 1 . . . . . . 1 . . . . . . . Traps Extracted . | . . . . . . . . . . . . . . . . . . . . . . . . . . . . . . . . . Installed 12 | . . . . . . . . . . . . . 5 . . . . 3 . . . . . . 4 . . . . . . . Triggered 20 | . . . . . . . 2 . . 1 . . 5 . 1 . 1 1 . . . . . 8 1 . . . . . . . Most Traps Carried 5 | . . . . 5 5 5 5 5 5 5 5 5 5 . . . . 3 . . . . . . . . . . . . . . Machines | -11 -10 -10 -9 -9 -8 -7 -7 -7 -7 -6 -6 -6 -6 -6 -6 -5 -5 -5 -5 -4 -4 -4 -4 -4 -3 -3 -3 -3 -2 -2 -1 -1 ---------- Run | Jun Mat Min Mat Min Mat Fac Low Low Dat Pro Fac Ext Cet Arc Hub Fac Upp Upp Zhi Pro Fac Upp Upp War Pro Res Qua Sec Res Tes Acc Com Machines Disabled 52 | . . . 6 . 1 1 . . . . 2 . 1 4 2 6 . . . . 5 1 . 3 . . 7 7 . 3 . 3 Max in Single Turn 3 | . . . 1 . 1 1 . . . . 1 . 1 1 2 1 . . . . 1 1 . 3 . . 1 1 . 1 . 2 Garrison Access 13 | . . . . . 1 2 . . . . 2 . . . . 2 . . . . 3 . . . . . . 1 1 1 . . Phase Generator 1 | . . . . . . . . . . . . . . . . . . . . . . . . . . . . . . . . 1 Network Hub 2 | . . . . . . . . . . . . . . . 2 . . . . . . . . . . . . . . . . . Energy Cycler 1 | . . . . . . . . . . . . 1 . . . . . . . . . . . . . . . . . . . . Machines Repaired 2 | . . . . . . . . . . . . . . . 2 . . . . . . . . . . . . . . . . . Machines Sabotaged . | . . . . . . . . . . . . . . . . . . . . . . . . . . . . . . . . . Overloaded Fab Kills . | . . . . . . . . . . . . . . . . . . . . . . . . . . . . . . . . . Hacking | -11 -10 -10 -9 -9 -8 -7 -7 -7 -7 -6 -6 -6 -6 -6 -6 -5 -5 -5 -5 -4 -4 -4 -4 -4 -3 -3 -3 -3 -2 -2 -1 -1 --------- Run | Jun Mat Min Mat Min Mat Fac Low Low Dat Pro Fac Ext Cet Arc Hub Fac Upp Upp Zhi Pro Fac Upp Upp War Pro Res Qua Sec Res Tes Acc Com Machines Accessed 224 | . 10 . 16 1 13 26 2 . 4 . 26 3 3 . 4 30 1 . 5 . 18 2 1 4 . 4 6 17 3 7 4 14 Terminals 114 | . 7 . 11 . 7 12 . . . . 11 3 3 . 4 13 . . . . 6 . . . . 1 4 12 2 4 2 12 Fabricators 16 | . . . . . . 5 . . . . 5 . . . . 4 . . . . 2 . . . . . . . . . . . Repair Stations 28 | . 1 . 2 . 2 3 . . . . 4 . . . . 5 . . . . 2 . . . . 1 2 1 . 2 1 2 Recycling Units 17 | . 2 . 2 . 2 2 . . . . 1 . . . . 3 . . . . 4 . . . . . . . . . 1 . Scanalyzers 15 | . . . 1 . 1 1 . . . . 3 . . . . 3 . . . . 1 . . . . 2 . 3 . . . . Garrison Access 14 | . . . . . 1 3 . . . . 2 . . . . 2 . . . . 3 . . . . . . 1 1 1 . . Total Hacks 873 | . 38 . 81 1 35 74 7 . 29 . 76 6 7 . 9 135 1 . 18 . 115 2 1 17 . 17 29 51 18 40 16 50 Successful 553 | . 13 . 55 1 20 45 7 . 29 . 48 5 2 . 6 88 1 . 18 . 72 2 1 17 . 8 18 36 8 23 9 21 Failed 317 | . 24 . 25 . 15 29 . . . . 28 1 5 . 3 47 . . . . 42 . . . . 9 11 15 10 17 7 29 Catastrophic 39 | . 3 . 4 . 2 2 . . . . 3 1 2 . 1 6 . . . . 7 . . . . 1 2 2 1 . . 2 Database Lockouts 3 | . 1 . 1 . . . . . . . . . . . . . . . . . 1 . . . . . . . . . . . Manual 271 | . 24 . 22 . 12 32 . . . . 26 3 . . 6 46 . . . . 47 . . 1 . 9 9 11 12 5 . 6 Terminals 419 | . 29 . 42 . 19 32 . . . . 27 6 7 . 9 53 . . . . 54 . . . . 10 18 32 17 20 7 37 Fabricators 72 | . . . . . . 18 . . . . 21 . . . . 17 . . . . 16 . . . . . . . . . . . Repair Stations 153 | . 5 . 8 . 5 7 . . . . 17 . . . . 37 . . . . 15 . . . . 1 11 11 . 17 6 13 Recycling Units 55 | . 4 . 5 . 6 7 . . . . 2 . . . . 15 . . . . 13 . . . . . . . . . 3 . Scanalyzers 76 | . . . 26 . 4 5 . . . . 6 . . . . 11 . . . . 11 . . . . 6 . 7 . . . . Garrison Access 22 | . . . . . 1 5 . . . . 3 . . . . 2 . . . . 6 . . . . . . 1 1 3 . . Terminal Hacks 245 | . 8 . 18 1 9 11 7 . 29 . 6 5 2 . 3 21 1 . 18 . 22 2 1 17 . 3 8 20 7 9 3 14 Record 30 | . . . 2 . 2 . 6 . 11 . . . 2 . . . . . 6 . . 1 . . . . . . . . . . Part Schematic 30 | . 2 . 1 . 1 1 . . 10 . 1 . . . . 6 . . 4 . 1 . . . . . 2 . 1 . . . Robot Schematic 5 | . . . . . . . . . 5 . . . . . . . . . . . . . . . . . . . . . . . Robot Analysis 7 | . 3 . . . . . . . . . . . . . . . . . 4 . . . . . . . . . . . . . Prototype ID Bank 28 | . . . 2 . . . . . 3 . . . . . . . . . 4 . 1 . . 16 . 1 . . . . . 1 Open Door 15 | . . . . 1 . . 1 . . . . 2 . . . . 1 . . . . 1 1 1 . . . 5 . . 1 1 Branch Access Points 7 | . . . 1 . 1 1 . . . . 1 . . . . 1 . . . . 1 . . . . . . . 1 . . . Emergency Access Points 12 | . . . 1 . . 2 . . . . 2 . . . . . . . . . 1 . . . . . 1 1 . 1 . 3 Machine Index 4 | . . . . . . . . . . . . . . . . 1 . . . . . . . . . . . 1 1 1 . . Terminal Index 7 | . . . . . . 1 . . . . 1 . . . 1 . . . . . 1 . . . . . . . . 1 1 1 Fabricator Index 3 | . . . . . . . . . . . . . . . . . . . . . 1 . . . . . . 1 1 . . . Repair Station Index 2 | . . . 1 . . . . . . . . . . . . . . . . . 1 . . . . . . . . . . . Scanalyzer Index 1 | . . . . . . . . . . . . . . . . . . . . . 1 . . . . . . . . . . . Garrison Index 2 | . . . . . . . . . . . . . . . . . . . . . 1 . . . . . . 1 . . . . Alert Level 8 | . . . . . 1 . . . . . . 1 . . . . . . . . 2 . . . . . . 1 1 . . 2 Unreport Threat 24 | . . . 2 . 2 2 . . . . . 2 . . . 4 . . . . 3 . . . . 2 1 4 . 2 . . Locate Traps 23 | . 1 . 4 . 1 . . . . . 1 . . . 1 3 . . . . 4 . . . . . . 3 . 2 . 3 Disarm Traps 1 | . . . 1 . . . . . . . . . . . . . . . . . . . . . . . . . . . . . Dispatch Records 1 | . 1 . . . . . . . . . . . . . . . . . . . . . . . . . . . . . . . Maintenance Status 1 | . . . . . . 1 . . . . . . . . . . . . . . . . . . . . . . . . . . Recall Investigation 2 | . . . . . . 1 . . . . . . . . . 1 . . . . . . . . . . . . . . . . Recall Extermination 6 | . . . . . . 1 . . . . . . . . . 2 . . . . . . . . . . 1 2 . . . . Recall Reinforcements 6 | . . . . . . 1 . . . . . . . . . 1 . . . . 1 . . . . . 1 1 . . 1 . Hauler Manifests 5 | . . . 2 . 1 . . . . . . . . . . . . . . . . . . . . . . . 1 1 . . Registered Components 2 | . . . . . . . . . . . . . . . . . . . . . . . . . . . 1 . . . . 1 Registered Prototypes 3 | . . . . . . . . . . . . . . . . . . . . . 1 . . . . . 1 . . . . 1 Zone Layout 9 | . 1 . 1 . . . . . . . . . . . 1 2 . . . . 2 . . . . . . . 1 1 . . Disengage Seal 1 | . . . . . . . . . . . . . . . . . . . . . . . . . . . . . . . . 1 Fabricator Hacks 41 | . . . . . . 11 . . . . 11 . . . . 11 . . . . 8 . . . . . . . . . . . Network Status 2 | . . . . . . 1 . . . . 1 . . . . . . . . . . . . . . . . . . . . . Load Schematic 26 | . . . . . . 7 . . . . 7 . . . . 7 . . . . 5 . . . . . . . . . . . Build 13 | . . . . . . 3 . . . . 3 . . . . 4 . . . . 3 . . . . . . . . . . . Repair Station Hacks 113 | . 3 . 6 . 3 4 . . . . 16 . . . . 24 . . . . 14 . . . . 1 8 10 . 12 6 6 Scan Component 60 | . 2 . 3 . 2 3 . . . . 8 . . . . 13 . . . . 7 . . . . 1 4 5 . 6 3 3 Repair 53 | . 1 . 3 . 1 1 . . . . 8 . . . . 11 . . . . 7 . . . . . 4 5 . 6 3 3 Recycling Unit Hacks 14 | . 1 . 2 . 2 . . . . . . . . . . 5 . . . . 4 . . . . . . . . . . . Retrieve Matter 2 | . . . . . . . . . . . . . . . . 2 . . . . . . . . . . . . . . . . Retrieve Components 12 | . 1 . 2 . 2 . . . . . . . . . . 3 . . . . 4 . . . . . . . . . . . Scanalyzer 61 | . . . 26 . 4 2 . . . . 5 . . . . 9 . . . . 7 . . . . 4 . 4 . . . . Insert Component 32 | . . . 13 . 2 1 . . . . 3 . . . . 3 . . . . 3 . . . . 3 . 4 . . . . Analyze 29 | . . . 13 . 2 1 . . . . 2 . . . . 6 . . . . 4 . . . . 1 . . . . . . Garrison Access Hacks 13 | . . . . . 1 2 . . . . 2 . . . . 2 . . . . 3 . . . . . . 1 1 1 . . Seal Access 13 | . . . . . 1 2 . . . . 2 . . . . 2 . . . . 3 . . . . . . 1 1 1 . . Unauthorized Hacks 66 | . 1 . 3 . 1 15 . . . . 8 . . . 3 16 . . . . 14 . . . . . 2 1 . 1 . 1 Terminals 23 | . 1 . 1 . 1 4 . . . . 2 . . . 3 4 . . . . 2 . . . . . 2 1 . 1 . 1 Track 3 | . . . . . . . . . . . . . . . . . . . . . 1 . . . . . . . . 1 . 1 Assimilate 9 | . . . . . . 3 . . . . 1 . . . . 2 . . . . 1 . . . . . 1 1 . . . . Botnet 7 | . 1 . 1 . 1 1 . . . . 1 . . . . 1 . . . . . . . . . . 1 . . . . . Operators 1 | . . . . . . . . . . . . . . . . 1 . . . . . . . . . . . . . . . . Sabotage 3 | . . . . . . . . . . . . . . . 3 . . . . . . . . . . . . . . . . . Fabricators 22 | . . . . . . 6 . . . . 6 . . . . 6 . . . . 4 . . . . . . . . . . . Prioritize 6 | . . . . . . 1 . . . . 2 . . . . 1 . . . . 2 . . . . . . . . . . . Liberate 2 | . . . . . . . . . . . . . . . . 1 . . . . 1 . . . . . . . . . . . Haulers 3 | . . . . . . 1 . . . . . . . . . 1 . . . . 1 . . . . . . . . . . . Recompile 11 | . . . . . . 4 . . . . 4 . . . . 3 . . . . . . . . . . . . . . . . Repair Stations . | . . . . . . . . . . . . . . . . . . . . . . . . . . . . . . . . . Recycling Units 21 | . . . 2 . . 5 . . . . . . . . . 6 . . . . 8 . . . . . . . . . . . Reject 9 | . . . . . . 2 . . . . . . . . . 3 . . . . 4 . . . . . . . . . . . Recyclers 1 | . . . . . . 1 . . . . . . . . . . . . . . . . . . . . . . . . . . Mask 9 | . . . . . . 2 . . . . . . . . . 3 . . . . 4 . . . . . . . . . . . Tunnel 2 | . . . 2 . . . . . . . . . . . . . . . . . . . . . . . . . . . . . Scanalyzers . | . . . . . . . . . . . . . . . . . . . . . . . . . . . . . . . . . Garrison Access . | . . . . . . . . . . . . . . . . . . . . . . . . . . . . . . . . . Data Cores Recovered 5 | . . . . . . 3 . . . . . . . . . . . . . . . . . . . . . 1 . . . 1 Used 2 | . . . . . . 2 . . . . . . . . . . . . . . . . . . . . . . . . . . Hacking Detections 147 | . 10 . 14 . 10 21 . . . . 20 1 3 . 2 18 . . . . 9 . . . . 2 6 9 2 5 3 12 Full Trace Events 18 | . 6 . 2 . 3 2 . . . . 2 . . . . 1 . . . . 1 . . . . . . . . . . 1 Feedback Events 1 | . . . . . . . . . . . 1 . . . . . . . . . . . . . . . . . . . . . Hackware Fried 1 | . . . . . . . . . . . 1 . . . . . . . . . . . . . . . . . . . . . Feedback Blocked 1 | . . . . . . . . . . . . . . . . . . . . . . . . . . . . . . . . 1 Robot Schematics Acquired 5 | . . . . . . . . . 5 . . . . . . . . . . . . . . . . . . . . . . . Robots Built . | . . . . . . . . . . . . . . . . . . . . . . . . . . . . . . . . . Authchips . | . . . . . . . . . . . . . . . . . . . . . . . . . . . . . . . . . Time . | . . . . . . . . . . . . . . . . . . . . . . . . . . . . . . . . . Total Robot Build Rating . | . . . . . . . . . . . . . . . . . . . . . . . . . . . . . . . . . Part Schematics Acquired 53 | . 2 . 12 . 2 2 . . 10 . 3 . . . . 9 . . 4 . 3 . . . . 1 2 . 1 2 . . Parts Built 19 | . . . . . . 5 . . . . 3 . . . . 6 . . . . 5 . . . . . . . . . . . Authchips 12 | . . . . . . 3 . . . . 3 . . . . 3 . . . . 3 . . . . . . . . . . . Time 679 | . . . . . . 114 . . . . 244 . . . . 135 . . . . 186 . . . . . . . . . . . Total Part Build Rating 116 | . . . . . . 17 . . . . 17 . . . . 45 . . . . 37 . . . . . . . . . . . Parts Repaired 52 | . 1 . 3 . 1 1 . . . . 8 . . . . 10 . . . . 7 . . . . . 4 5 . 6 3 3 Time 2429 | . 13 . 153 . 44 38 . . . . 281 . . . . 385 . . . . 396 . . . . . 116 425 . 358 117 103 Parts Recycled . | . . . . . . . . . . . . . . . . . . . . . . . . . . . . . . . . . Recycled Matter . | . . . . . . . . . . . . . . . . . . . . . . . . . . . . . . . . . Retrieved Matter . | . . . . . . . . . . . . . . . . . . . . . . . . . . . . . . . . . Retrieved Components 44 | . 8 . 2 . 19 . . . . . . . . . . 10 . . . . 5 . . . . . . . . . . . Parts Scanalyzed 22 | . . . 11 . 2 1 . . . . 2 . . . . 3 . . . . 2 . . . . 1 . . . . . . Part Schematics Acquired 21 | . . . 11 . 1 1 . . . . 2 . . . . 3 . . . . 2 . . . . 1 . . . . . . Parts Damaged 1 | . . . . . . . . . . . . . . . . 1 . . . . . . . . . . . . . . . . Bothacking | -11 -10 -10 -9 -9 -8 -7 -7 -7 -7 -6 -6 -6 -6 -6 -6 -5 -5 -5 -5 -4 -4 -4 -4 -4 -3 -3 -3 -3 -2 -2 -1 -1 ------------ Run | Jun Mat Min Mat Min Mat Fac Low Low Dat Pro Fac Ext Cet Arc Hub Fac Upp Upp Zhi Pro Fac Upp Upp War Pro Res Qua Sec Res Tes Acc Com Used RIF Installer . | . . . . . . . . . . . . . . . . . . . . . . . . . . . . . . . . . Robots Hacked . | . . . . . . . . . . . . . . . . . . . . . . . . . . . . . . . . . Non-combat . | . . . . . . . . . . . . . . . . . . . . . . . . . . . . . . . . . Combat . | . . . . . . . . . . . . . . . . . . . . . . . . . . . . . . . . . Robot Hacks Applied . | . . . . . . . . . . . . . . . . . . . . . . . . . . . . . . . . . Relay Couplers Released . | . . . . . . . . . . . . . . . . . . . . . . . . . . . . . . . . . Fabnet Peak Effective % . | . . . . . . . . . . . . . . . . . . . . . . . . . . . . . . . . . Robots Rewired 12 | . . . . . . . 2 . . . . 10 . . . . . . . . . . . . . . . . . . . . Allies Hacked 2 | . . . . . . . . . . . . 1 . . . . . . . . 1 . . . . . . . . . . . Hacks Repelled 1 | . . . . . . . . . . . . 1 . . . . . . . . . . . . . . . . . . . . Allies | -11 -10 -10 -9 -9 -8 -7 -7 -7 -7 -6 -6 -6 -6 -6 -6 -5 -5 -5 -5 -4 -4 -4 -4 -4 -3 -3 -3 -3 -2 -2 -1 -1 -------- Run | Jun Mat Min Mat Min Mat Fac Low Low Dat Pro Fac Ext Cet Arc Hub Fac Upp Upp Zhi Pro Fac Upp Upp War Pro Res Qua Sec Res Tes Acc Com Total Allies 31 | . . 1 . 5 . 2 2 . . 1 . 10 . . . 6 . . . . 3 . . . . . 1 . . . . . Largest Group 9 | . . 1 1 4 4 1 2 . . 1 1 9 4 . . 5 3 1 . . 3 . . . . . 1 . . . . . Highest-Rated Group 311 | . . 31 31 83 83 26 32 . . 96 96 311 129 . . 185 77 23 . . 141 . . . . . 40 . . . . . Highest-Rated Ally 96 | . . 31 31 31 31 26 16 . . 96 96 39 39 . . 54 31 23 . . 47 . . . . . 40 . . . . . Total Orders 91 | . . . . . . 2 . . . . 26 12 10 . . 4 8 4 . 5 20 . . . . . . . . . . . STAY 4 | . . . . . . 1 . . . . . 1 2 . . . . . . . . . . . . . . . . . . . FOLLOW 5 | . . . . . . 1 . . . . . 2 2 . . . . . . . . . . . . . . . . . . . EXPLORE 15 | . . . . . . . . . . . 4 1 1 . . . 2 2 . 2 3 . . . . . . . . . . . RETURN 67 | . . . . . . . . . . . 22 8 5 . . 4 6 2 . 3 17 . . . . . . . . . . . Ally Attacks 655 | . . 13 1 7 20 . 6 . . 11 148 91 74 . . 39 71 15 . 27 132 . . . . . . . . . . . Total Damage 11981 | . . 106 21 68 241 . 76 . . 353 3268 1643 1258 . . 402 1146 264 . 484 2651 . . . . . . . . . . . Kills 92 | . . 4 . 3 4 . 1 . . 2 25 13 8 . . 8 3 2 . 3 16 . . . . . . . . . . . Allies Corrupted 2 | . . . . . . . . . . . . . . . . . . . . . 2 . . . . . . . . . . . Allies Melted 4 | . . . . . . . . . . . 1 1 . . . . . . . . . . . . . . . . 2 . . . Intel | -11 -10 -10 -9 -9 -8 -7 -7 -7 -7 -6 -6 -6 -6 -6 -6 -5 -5 -5 -5 -4 -4 -4 -4 -4 -3 -3 -3 -3 -2 -2 -1 -1 ------- Run | Jun Mat Min Mat Min Mat Fac Low Low Dat Pro Fac Ext Cet Arc Hub Fac Upp Upp Zhi Pro Fac Upp Upp War Pro Res Qua Sec Res Tes Acc Com Robot Analysis Total 7 | . 3 . . . . . . . . . . . . . . . . . 4 . . . . . . . . . . . . . Derelict Logs Recovered 8 | . . 2 . 1 . . 1 . . 1 . . . . . . 1 . . 1 . 1 . . . . . . . . . . Drone Launches 100 | . . . . . . . . . . . 39 8 5 . . 7 9 3 . 4 25 . . . . . . . . . . . Drone Recoveries 93 | . . . . . . . . . . . 36 7 4 . . 7 9 3 . 4 23 . . . . . . . . . . . Exploration | -11 -10 -10 -9 -9 -8 -7 -7 -7 -7 -6 -6 -6 -6 -6 -6 -5 -5 -5 -5 -4 -4 -4 -4 -4 -3 -3 -3 -3 -2 -2 -1 -1 ------------- Run | Jun Mat Min Mat Min Mat Fac Low Low Dat Pro Fac Ext Cet Arc Hub Fac Upp Upp Zhi Pro Fac Upp Upp War Pro Res Qua Sec Res Tes Acc Com Turns Passed 46564 | 124 2482 1299 3753 1588 4186 2524 1446 482 85 457 3283 1147 789 590 158 4350 874 872 222 645 2839 513 628 1052 339 621 1333 2665 1138 1307 707 2066 Spaces Moved 39715 | 57 872 500 1258 648 1515 3713 1595 390 79 391 3539 927 340 269 212 4148 901 1000 296 822 2890 914 886 966 577 759 1265 2504 1736 1267 713 1766 Core 12 | 3 . . . . . . . . . . . . . . . . . . . . . . . . . . . . . . . 9 Treads 5129 | 54 872 500 1258 648 1379 . . . . . . . 284 134 . . . . . . . . . . . . . . . . . . Legs . | . . . . . . . . . . . . . . . . . . . . . . . . . . . . . . . . . Wheels . | . . . . . . . . . . . . . . . . . . . . . . . . . . . . . . . . . Hover 34574 | . . . . . 136 3713 1595 390 79 391 3539 927 56 135 212 4148 901 1000 296 822 2890 914 886 966 577 759 1265 2504 1736 1267 713 1757 Flight . | . . . . . . . . . . . . . . . . . . . . . . . . . . . . . . . . . Fastest Speed 29 | 50 160 240 240 240 112 38 48 108 108 108 48 50 50 48 48 48 68 68 61 61 40 53 53 53 53 46 29 46 50 48 50 42 Average Speed 79 | 154 225 240 240 240 219 42 67 108 108 108 54 70 145 119 62 68 68 68 64 62 55 53 53 53 53 46 45 53 50 51 50 59 Slowest Speed 246 | 160 240 240 240 240 246 108 112 108 108 108 113 107 160 176 116 240 68 68 71 127 141 53 53 127 53 53 46 125 54 56 52 125 Overloaded Moves 98 | . . . . . . . . . . . . . . . . . . . . . 40 . . . . . 37 17 . . . 4 Propulsion Burnouts . | . . . . . . . . . . . . . . . . . . . . . . . . . . . . . . . . . Robots Hopped . | . . . . . . . . . . . . . . . . . . . . . . . . . . . . . . . . . Cave-ins Triggered . | . . . . . . . . . . . . . . . . . . . . . . . . . . . . . . . . . Exploration Rate (%) 70 | 5 99 95 98 100 96 70 92 53 72 56 74 72 73 98 30 76 92 89 61 80 54 89 86 79 57 14 88 85 29 86 16 51 Regions Visited 32 Branch Regions 22 Pre-discovered Areas 9 | . . 1 2 1 . . . . 1 1 . . . . . . . . 3 . . . . . . . . . . . . . Known Exits Taken 28 | . . . 1 . 1 1 1 1 1 1 1 1 1 1 1 1 1 1 1 1 1 1 1 1 1 1 1 1 1 1 1 . Unknown Exits Taken 4 | 1 1 1 . 1 . . . . . . . . . . . . . . . . . . . . . . . . . . . . Scrap Searched 22 | . . 2 . 2 . . 3 2 . . . . . . . . 2 1 . 1 . 3 4 . 2 . . . . . . . Spaces Dug 411 | . . . . . . 81 15 . . . 39 13 2 . 1 34 3 3 . 2 48 . 37 . . 6 23 40 14 15 12 23 Terrain Destroyed 830 | . . 5 . . 25 84 82 1 . 3 94 21 73 11 28 52 5 3 . 2 52 . 63 22 . 6 23 40 14 17 12 92 Melee 317 | . . . . . . 77 4 . . . 34 5 2 . . 14 3 3 . 2 48 . 6 . . 6 21 35 13 12 12 20 Projectile 147 | . . . . . 13 7 6 1 . 3 22 16 7 11 1 37 2 . . . 4 . . . . . 2 5 1 5 . 4 AOE 365 | . . 5 . . 12 . 72 . . . 38 . 64 . 27 . . . . . . . 57 22 . . . . . . . 68 Terrain Rammed . | . . . . . . . . . . . . . . . . . . . . . . . . . . . . . . . . . Walls Destroyed . | . . . . . . . . . . . . . . . . . . . . . . . . . . . . . . . . . Machines Disabled . | . . . . . . . . . . . . . . . . . . . . . . . . . . . . . . . . . Actions | -11 -10 -10 -9 -9 -8 -7 -7 -7 -7 -6 -6 -6 -6 -6 -6 -5 -5 -5 -5 -4 -4 -4 -4 -4 -3 -3 -3 -3 -2 -2 -1 -1 --------- Run | Jun Mat Min Mat Min Mat Fac Low Low Dat Pro Fac Ext Cet Arc Hub Fac Upp Upp Zhi Pro Fac Upp Upp War Pro Res Qua Sec Res Tes Acc Com Total 52181 | 76 1240 569 1794 673 2085 4403 1918 441 78 412 4721 1356 587 459 233 5463 1136 1185 323 939 3946 939 1022 1501 601 1001 1958 3668 1979 1844 1005 2626 Wait 8444 | . 227 46 303 11 280 357 251 33 . 9 761 271 120 91 4 923 182 153 . 97 689 16 115 477 9 183 580 838 152 452 214 600 Move 39683 | 56 871 499 1257 647 1514 3712 1594 389 78 390 3538 926 339 268 211 4147 900 999 295 821 2889 913 885 965 576 758 1264 2503 1735 1266 712 1766 Hop . | . . . . . . . . . . . . . . . . . . . . . . . . . . . . . . . . . Pick Up 353 | 7 23 . 30 3 24 25 4 3 . . 44 12 14 11 1 42 5 8 5 1 26 1 1 5 . 4 2 21 8 5 5 13 Fast Attach 335 | 6 2 . 5 . 20 18 6 2 . 1 41 6 8 11 . 38 5 . 6 1 51 3 . 16 3 1 11 29 17 18 1 9 Attach 282 | . 1 . 9 . 13 13 10 2 . 1 54 21 11 7 5 38 6 3 . 2 38 . . 3 . 2 2 16 6 1 3 15 Detach 158 | . . . . . . 3 6 1 . 1 36 14 4 2 3 26 7 2 . 2 27 . . 3 . . 3 9 5 1 . 3 Swap 449 | . 12 5 36 3 20 30 4 2 . . 29 6 22 7 3 43 3 1 4 6 24 2 7 4 2 7 25 63 6 23 14 36 Drop 606 | . 19 3 45 4 59 36 8 3 . 1 83 22 22 21 2 58 8 8 10 2 62 3 1 23 3 4 10 30 23 18 2 13 Fire 870 | 7 85 16 109 4 155 35 26 2 . 7 56 37 38 41 4 120 13 2 . 2 60 . 4 1 . . 5 14 1 5 . 21 Melee 930 | . . . . . . 148 6 4 . 2 79 12 4 . . 28 7 6 3 5 80 1 9 4 4 42 56 145 26 55 54 150 Ram . | . . . . . . . . . . . . . . . . . . . . . . . . . . . . . . . . . Kick . | . . . . . . . . . . . . . . . . . . . . . . . . . . . . . . . . . Crush 1 | . . . . 1 . . . . . . . . . . . . . . . . . . . . . . . . . . . . Escape Stasis 26 | . . . . . . 26 . . . . . . . . . . . . . . . . . . . . . . . . . . Rewire 32 | . . . . . . . 3 . . . . 29 . . . . . . . . . . . . . . . . . . . . Trap 12 | . . . . . . . . . . . . . 5 . . . . 3 . . . . . . 4 . . . . . . . Miscellaneous . | . . . . . . . . . . . . . . . . . . . . . . . . . . . . . . . . . Route ------- -11/Junkyard -10/Materials (discovered 5 exits: *Mat x3 / [*Min x2]) -10/Mines (discovered 3 exits: *Mat x2 / [*Exi]) -9/Materials (discovered 4 exits: *Mat x2 / *Min x2) -9/Mines (discovered 2 exits: *Mat x2) -8/Materials (discovered 3 exits: *Fac x3) -7/Factory (discovered 6 exits: *Fac x3 / *Sto / *Low x2) -7/Lower Caves -7/Lower Caves (discovered 2 exits: *Fac / *Dat) -7/Data Miner -6/Proximity Caves -6/Factory (discovered 7 exits: *Fac x3 / *Low x2 / *Ext x2) -6/Extension (discovered 3 exits: *Fac x2 / *Cet) -6/Cetus (discovered 2 exits: *Fac / *Arc) -6/Archives (discovered 3 exits: *Fac / *Hub x2) -6/Hub_04(d) -5/Factory (discovered 5 exits: *Fac x3 / *Upp x2) -5/Upper Caves -5/Upper Caves (discovered 2 exits: *Fac / *Zhi) -5/Zhirov -4/Proximity Caves -4/Factory (discovered 4 exits: *Res x2 / *Upp x2) -4/Upper Caves -4/Upper Caves (discovered 2 exits: *Res / *War) -4/Warlord -3/Proximity Caves -3/Research (discovered 3 exits: Res / Arm / *Qua) -3/Quarantine (discovered 2 exits: *Res / *Sec) -3/Section 7 -2/Research (discovered 3 exits: *Acc / *Tes x2) -2/Testing -1/Access -1/Command History --------- Turn | Location | Event 55 | -11/Junkyard | Discovered new exit (range 16) 125 | -11/Junkyard | Entered Materials 302 | -10/Materials | Build established: Mutant 352 | -10/Materials | Repaired Lgt. Treads 454 | -10/Materials | Discovered new exit (range 9) 980 | -10/Materials | Discovered new exit (range 12) 1240 | -10/Materials | Discovered new exit (range 6) 1539 | -10/Materials | Discovered new exit (range 15) 2362 | -10/Materials | Discovered new exit (range 6) 2410 | -10/Materials | Central database locked down 2607 | -10/Materials | Entered Mines 2625 | -10/Mines | Learned location of Zion (-6) 2648 | -10/Mines | Met a Derelict bent on vengeance 2675 | -10/Mines | Learned Materials non-interactive machine intel 2819 | -10/Mines | Core integrity fell below 50% 2882 | -10/Mines | Discovered new exit (range 10) 3012 | -10/Mines | Escorted by a lone wolf Derelict 3132 | -10/Mines | Build established: Scavenger-Mutant 3350 | -10/Mines | Deemed a non-threat by the Exiles lab entrance 3350 | -10/Mines | Discovered new exit (range 5) 3865 | -10/Mines | Discovered new exit (range 10) 3906 | -10/Mines | Entered Materials 3906 | -9/Materials | Accompanied by 1 ally 3906 | -9/Materials | Evolved 2 slots: Propulsion x1, Utility x1 3907 | -9/Materials | Loaded intel: 32 non-interactive machine locations 4628 | -9/Materials | Identified exit to Mines 4790 | -9/Materials | Discovered new exit (range 16) 5177 | -9/Materials | Repaired Adv. Beam Cannon 5513 | -9/Materials | Central database locked down 5782 | -9/Materials | Repaired Adv. Beam Cannon 5835 | -9/Materials | Repaired Adv. Beam Cannon 7544 | -9/Materials | Discovered new exit (range 3) 7659 | -9/Materials | Entered Mines 7703 | -9/Mines | Assisted by bots powering up and referring to "LRC-V3" 7811 | -9/Mines | Discovered new exit (range 16) 7999 | -9/Mines | Learned location of Storage (-7) 8472 | -9/Mines | Found a hidden stash of uninstalled traps 8501 | -9/Mines | Discovered new exit (range 5) 8825 | -9/Mines | Met a Derelict who couldn't figure out how to use a Trap Extractor 9247 | -9/Mines | Entered Materials 9247 | -8/Materials | Accompanied by 4 allies 9247 | -8/Materials | Evolved 2 slots: Utility x2 9252 | -8/Materials | Led the pair of lost Derelicts to an unsafe place 10306 | -8/Materials | Garrison activated, responded to threat 10655 | -8/Materials | Discovered new exit (range 11) 11148 | -8/Materials | Discovered new exit (range 10) 11462 | -8/Materials | Build established: Mutant 11525 | -8/Materials | Repaired Med. Reactive Plating 12856 | -8/Materials | Discovered new exit (range 16) 13432 | -8/Materials | Identified exit to Factory 13433 | -8/Materials | Entered Factory 13433 | -7/Factory | Evolved 2 slots: Propulsion x1, Utility x1 13551 | -7/Factory | Discovered new exit (range 16) 13559 | -7/Factory | Identified exit to Factory 13618 | -7/Factory | Discovered new exit (range 16) 13737 | -7/Factory | Build established: Hacker-Scout 14179 | -7/Factory | Repaired Airjet 14516 | -7/Factory | Discovered new exit (range 13) 14521 | -7/Factory | Identified exit to Lower Caves 14677 | -7/Factory | Identified exit to Storage 14758 | -7/Factory | Discovered exit to Factory (range 6) 14969 | -7/Factory | Fabricated Powered Armor (x2) 15033 | -7/Factory | Search patrols dispatched 15591 | -7/Factory | Lost 5 parts (1p4n) 15624 | -7/Factory | Discovered exit to Factory (range 19) 15673 | -7/Factory | Fabricated Hvy. Assault Cannon (x1) 15750 | -7/Factory | Fabricated Airjet (x2) 15957 | -7/Factory | Entered Lower Caves 16003 | -7/Lower Caves | Destroyed 9 combat bots 16025 | -7/Lower Caves | Build established: Scavenger-Scout 16563 | -7/Lower Caves | Learned 8 Research zone layouts 16563 | -7/Lower Caves | Learned Armory terminal intel 16563 | -7/Lower Caves | Learned Extension garrison access intel 16563 | -7/Lower Caves | Learned Armory garrison access intel 16639 | -7/Lower Caves | Attracted the attention of an 0b10 outpost 16932 | -7/Lower Caves | Build established: Hacker-Mutant 17182 | -7/Lower Caves | Attracted the attention of an 0b10 checkpoint 17270 | -7/Lower Caves | Encountered a Warlord checkpoint 17273 | -7/Lower Caves | Identified exit to Lower Caves 17403 | -7/Lower Caves | Entered another Lower Caves area 17423 | -7/Lower Caves | Discovered exit to Factory (range 10) 17839 | -7/Lower Caves | Discovered new exit (range 10) 17851 | -7/Lower Caves | Identified exit to Data Miner 17885 | -7/Lower Caves | Entered Data Miner 17885 | -7/Data Miner | Discovered new exit (range 6) 17902 | -7/Data Miner | Met Data Miner 17924 | -7/Data Miner | Learned location of Section 7 (-3) 17924 | -7/Data Miner | Acquired the access code to Warlord's prototype stash 17945 | -7/Data Miner | Received God Mode back door access code from Data Miner 17969 | -7/Data Miner | Identified exit to Proximity Caves 17970 | -7/Data Miner | Entered Proximity Caves 17994 | -6/Proximity Caves | Escorted by Enhanced Grunt 18418 | -6/Proximity Caves | Discovered exit to Factory (range 7) 18425 | -6/Proximity Caves | Spotted B-75 Beast 18427 | -6/Proximity Caves | Entered Factory 18427 | -6/Factory | Accompanied by 1 ally 18427 | -6/Factory | Evolved 2 slots: Utility x2 18675 | -6/Factory | Identified exit to Lower Caves 18675 | -6/Factory | Identified exit to Extension 18802 | -6/Factory | Fabricated Combat Drone Bay? 18865 | -6/Factory | Discovered new exit (range 17) 18882 | -6/Factory | Identified exit to Factory 18955 | -6/Factory | Hacking Suite fried by hacking feedback 18962 | -6/Factory | Build established: Hacker-Scout 18981 | -6/Factory | Incoming investigation squad redirected 19433 | -6/Factory | Incoming investigation squad redirected 19570 | -6/Factory | Fabricated Combat Drone Bay (x1) 19886 | -6/Factory | Repaired Powered Armor 19972 | -6/Factory | Spotted B-75 Beast 20037 | -6/Factory | Repaired Airjet 20072 | -6/Factory | Repaired Imp. Hover Unit 20123 | -6/Factory | Repaired Imp. Gravmag System 20163 | -6/Factory | Repaired Airjet 20202 | -6/Factory | Repaired Hvy. Assault Cannon 20301 | -6/Factory | Discovered exit to Factory (range 16) 20714 | -6/Factory | Repaired Lgt. Nuclear Core 21058 | -6/Factory | Incoming investigation squad redirected 21135 | -6/Factory | Fabricated Cld. Aerolev Unit (x1) 21155 | -6/Factory | Incoming investigation squad redirected 21405 | -6/Factory | Discovered exit to Factory (range 19) 21570 | -6/Factory | Repaired Cmb. Airjet 21616 | -6/Factory | Incoming investigation squad redirected 21656 | -6/Factory | Incoming investigation squad redirected 21710 | -6/Factory | Entered Extension 21740 | -6/Extension | Energy Cycler disabled 21740 | -6/Extension | Rescued a captive Derelict 21742 | -6/Extension | Rescued a captive Derelict 21742 | -6/Extension | Rescued a captive Derelict 21744 | -6/Extension | Rescued a captive Derelict 21744 | -6/Extension | Rescued a captive Derelict 21748 | -6/Extension | Rescued a captive Derelict 21756 | -6/Extension | Rescued a captive Derelict 21756 | -6/Extension | Rescued a captive Derelict 22298 | -6/Extension | Build established: Commander-Scout 22585 | -6/Extension | Spotted B-75 Beast 22595 | -6/Extension | Discovered exit to Factory (range 19) 22604 | -6/Extension | Allies destroyed B-75 Beast 22623 | -6/Extension | Extracted ID and sensor layout for unrecognized location from A7's data core 22750 | -6/Extension | Discovered new exit (range 22) 22751 | -6/Extension | Discovered exit to Factory (range 21) 22782 | -6/Extension | Identified exit to Cetus 22857 | -6/Extension | Entered Cetus 22857 | -6/Cetus | Accompanied by 4 allies 22869 | -6/Cetus | Spotted Cetus Guard 22869 | -6/Cetus | Spotted Cetus Guard 22869 | -6/Cetus | Spotted Cetus Guard 22869 | -6/Cetus | Spotted Cetus Guard 22902 | -6/Cetus | Allies destroyed Cetus Guard 22906 | -6/Cetus | Allies destroyed Cetus Guard 22914 | -6/Cetus | Allies destroyed Cetus Guard 22921 | -6/Cetus | Destroyed Cetus Guard 23191 | -6/Cetus | Discovered new exit (range 22) 23227 | -6/Cetus | Spotted Cetus Guard 23230 | -6/Cetus | Spotted Cetus Guard 23249 | -6/Cetus | Discovered exit to Factory (range 31) 23253 | -6/Cetus | Spotted Cetus Guard 23301 | -6/Cetus | Spotted Cetus Guard 23368 | -6/Cetus | Build established: Scavenger-Mutant 23419 | -6/Cetus | Core integrity fell below 50% 23440 | -6/Cetus | Lost 3 parts (1n1u1w) 23478 | -6/Cetus | Destroyed Cetus Guard 23493 | -6/Cetus | System corruption reached 10% 23529 | -6/Cetus | Destroyed Cetus Guard 23550 | -6/Cetus | Destroyed 7 combat bots 23568 | -6/Cetus | Met Revision 17 23644 | -6/Cetus | Identified exit to Archives 23646 | -6/Cetus | Entered Archives 23858 | -6/Archives | Discovered exit to Factory (range 19) 23905 | -6/Archives | Discovered new exit (range 20) 24125 | -6/Archives | Discovered new exit (range 21) 24236 | -6/Archives | Identified exit to Hub_04(d) 24236 | -6/Archives | Entered Hub_04(d) 24255 | -6/Hub_04(d) | Discovered exit to Factory (range 22) 24287 | -6/Hub_04(d) | Network Hub disabled 24309 | -6/Hub_04(d) | Incoming investigation squad redirected 24322 | -6/Hub_04(d) | Network Hub disabled 24331 | -6/Hub_04(d) | Incoming investigation squad redirected 24340 | -6/Hub_04(d) | Incoming investigation squad redirected 24340 | -6/Hub_04(d) | Core integrity fell below 20% 24360 | -6/Hub_04(d) | Spotted Lightning 24360 | -6/Hub_04(d) | Spotted Lightning 24360 | -6/Hub_04(d) | Spotted Lightning 24390 | -6/Hub_04(d) | Spotted Lightning 24390 | -6/Hub_04(d) | Spotted Lightning 24394 | -6/Hub_04(d) | Entered Factory 24394 | -5/Factory | Evolved 2 slots: Propulsion x1, Utility x1 24400 | -5/Factory | Lost 4 parts (4n) 24645 | -5/Factory | Build established: Hacker-Mutant 25096 | -5/Factory | Incoming investigation squad redirected 25533 | -5/Factory | Identified exit to Upper Caves 25551 | -5/Factory | Discovered new exit (range 21) 25563 | -5/Factory | Build established: Hacker-Scout 25807 | -5/Factory | Repaired Broken Cmb. Gravmag System 25832 | -5/Factory | Repaired Adv. Sensor Array 26080 | -5/Factory | Discovered new exit (range 5) 26083 | -5/Factory | Identified exit to Factory 26139 | -5/Factory | Fabricated Cmb. Antigrav System (x2) 26176 | -5/Factory | Fabricated Cmb. Antigrav System (x2) 26228 | -5/Factory | Fabricated Combat Drone Bay (x1) 26324 | -5/Factory | Fabricated Lrn. Sensor Array? 26636 | -5/Factory | Discovered exit to Factory (range 10) 27420 | -5/Factory | Repaired Hvy. Assault Cannon 27461 | -5/Factory | Repaired Exp. Utility Shielding 27491 | -5/Factory | Repaired Cmb. Gravmag System 27525 | -5/Factory | Repaired Cmb. Antigrav System 27846 | -5/Factory | Repaired Prc. Rocket Launcher 28343 | -5/Factory | Allied Derelicts emerged from ambush trap array 28586 | -5/Factory | Repaired Centrium Medium Armor Plating 28634 | -5/Factory | Repaired Broken Cmb. Antigrav System 28655 | -5/Factory | Repaired Hvy. Assault Cannon 28691 | -5/Factory | Incoming investigation squad redirected 28716 | -5/Factory | Incoming investigation squad redirected 28729 | -5/Factory | Incoming investigation squad redirected 28744 | -5/Factory | Entered Upper Caves 28744 | -5/Upper Caves | Accompanied by 3 allies 28903 | -5/Upper Caves | Learned Factory terminal intel 29444 | -5/Upper Caves | Spotted B-75 Beast 29497 | -5/Upper Caves | Allies destroyed B-75 Beast 29601 | -5/Upper Caves | Discovered new exit (range 5) 29616 | -5/Upper Caves | Identified exit to Upper Caves 29618 | -5/Upper Caves | Entered another Upper Caves area 29618 | -5/Upper Caves | Accompanied by 1 ally 29713 | -5/Upper Caves | Discovered exit to Factory (range 19) 30403 | -5/Upper Caves | Discovered new exit (range 12) 30411 | -5/Upper Caves | Identified exit to Zhirov 30490 | -5/Upper Caves | Entered Zhirov 30491 | -5/Zhirov | Discovered new exit (range 3) 30504 | -5/Zhirov | Met Zhirov 30520 | -5/Zhirov | Learned location of Quarantine (-3) 30520 | -5/Zhirov | Learned location of Testing (-2) 30520 | -5/Zhirov | Learned location of Command (-1) 30525 | -5/Zhirov | Zhirov requested help retrieving the SGEMP Prototype 30540 | -5/Zhirov | Found Alien Artifact 30540 | -5/Zhirov | Identified Integrated Reactor 30540 | -5/Zhirov | Installed Integrated Reactor, increased core energy generation (+10) 30551 | -5/Zhirov | Found Alien Artifact 30654 | -5/Zhirov | Identified exit to Proximity Caves 30712 | -5/Zhirov | Entered Proximity Caves 30719 | -4/Proximity Caves | Spotter reported a threat 31003 | -4/Proximity Caves | Learned location of 2 exits from Research 31294 | -4/Proximity Caves | Discovered exit to Factory (range 5) 31357 | -4/Proximity Caves | Entered Factory 31357 | -4/Factory | Evolved 2 slots: Power x1, Propulsion x1 31358 | -4/Factory | Identified exit to Research 31359 | -4/Factory | Loaded intel: 26 terminal locations 31518 | -4/Factory | Garrison activated, responded to threat 32091 | -4/Factory | Central database locked down 32583 | -4/Factory | Repaired Hvy. Assault Cannon 32613 | -4/Factory | Repaired Cld. Gravmag System 32644 | -4/Factory | Repaired Enh. Fission Core? 32824 | -4/Factory | Identified exit to Upper Caves 33074 | -4/Factory | Fabricated Cmb. Antigrav System (x2) 33171 | -4/Factory | Discovered exit to Research (range 7) 33181 | -4/Factory | Found Prototype Device 33181 | -4/Factory | Identified Adv. Kinecellerator 33330 | -4/Factory | Identified Transdimensional Reconstructor 33334 | -4/Factory | Found Prototype Slashing Weapon 33334 | -4/Factory | Identified Molecular Scythe 33462 | -4/Factory | Fabricated Nanoactuators? 33547 | -4/Factory | Repaired Exp. Utility Shielding 33638 | -4/Factory | Repaired Enh. Fission Core? 33657 | -4/Factory | Fabricated Assault Drone Bay? 33727 | -4/Factory | Repaired Cmb. Antigrav System 33857 | -4/Factory | First assault squad dispatched 33880 | -4/Factory | Incoming assault squad redirected 33925 | -4/Factory | Repaired Cld. Gravmag System? 34036 | -4/Factory | Incoming investigation squad redirected 34131 | -4/Factory | Spotted B-86 Titan 34196 | -4/Factory | Entered Upper Caves 34473 | -4/Upper Caves | Spotted B-86 Titan 34531 | -4/Upper Caves | Learned Research terminal intel 34611 | -4/Upper Caves | Discovered new exit (range 8) 34619 | -4/Upper Caves | Identified exit to Upper Caves 34642 | -4/Upper Caves | Encountered a Warlord checkpoint 34709 | -4/Upper Caves | Entered another Upper Caves area 34730 | -4/Upper Caves | Discovered exit to Research (range 21) 34731 | -4/Upper Caves | Encountered a Warlord checkpoint 35170 | -4/Upper Caves | Discovered new exit (range 6) 35171 | -4/Upper Caves | Identified exit to Warlord 35337 | -4/Upper Caves | Entered Warlord 35356 | -4/Warlord | System corruption cleaned by Quarantine Array 35585 | -4/Warlord | Visited the Vortex Lab 35589 | -4/Warlord | Warlord's base attacked by MAIN.C 35589 | -4/Warlord | Found Prototype Energy Cannon 35589 | -4/Warlord | Identified Vortex Driver 35626 | -4/Warlord | Met Warlord 35632 | -4/Warlord | Opened Warlord's prototype stash 35640 | -4/Warlord | Found Prototype Hackware 35640 | -4/Warlord | Identified System Mapper 35644 | -4/Warlord | Found Prototype Device 35644 | -4/Warlord | Identified Thermal Barrier 35647 | -4/Warlord | Found Prototype Processor 35647 | -4/Warlord | Identified Exp. Target Analyzer 35651 | -4/Warlord | Found Prototype Processor 35651 | -4/Warlord | Identified Exp. Targeting Computer 35696 | -4/Warlord | Found Prototype Launcher 35724 | -4/Warlord | Identified Vortex Catalyst Activator 35802 | -4/Warlord | Warlord forces counterattacked 35889 | -4/Warlord | Found Prototype Reactor 36264 | -4/Warlord | Warlord base infiltrated, sounded retreat 36265 | -4/Warlord | Enhanced Grunt warped into view 36265 | -4/Warlord | Enhanced Grunt warped into view 36265 | -4/Warlord | Enhanced Grunt warped into view 36265 | -4/Warlord | Enhanced Demolisher warped into view 36265 | -4/Warlord | Enhanced Demolisher warped into view 36265 | -4/Warlord | Enhanced Demolisher warped into view 36301 | -4/Warlord | Found Prototype Ballistic Cannon 36301 | -4/Warlord | Identified Hvy. Autocannon 36383 | -4/Warlord | Discovered new exit (range 14) 36389 | -4/Warlord | Identified exit to Proximity Caves 36389 | -4/Warlord | Entered Proximity Caves 36607 | -3/Proximity Caves | Attracted the attention of an 0b10 checkpoint 36712 | -3/Proximity Caves | Discovered exit to Research (range 12) 36728 | -3/Proximity Caves | Entered Research 36728 | -3/Research | Evolved 2 slots: Propulsion x1, Utility x1 36729 | -3/Research | Identified exit to Armory 36730 | -3/Research | Identified exit to Quarantine 36730 | -3/Research | Identified exit to Research 36732 | -3/Research | Loaded intel: 24 terminal locations 36734 | -3/Research | Identified Vortex Chain Reactor 36928 | -3/Research | Revision forces began assault on 0b10 37024 | -3/Research | Met up with Revision 17++ 37327 | -3/Research | Found Enh. Force Lance 37349 | -3/Research | Entered Quarantine 37402 | -3/Quarantine | Found Alien Artifact 37402 | -3/Quarantine | Identified Dimensional Node Initializer 37402 | -3/Quarantine | Initialized slip node 37436 | -3/Quarantine | Found Alien Slashing Weapon 37436 | -3/Quarantine | Identified Sigix Broadsword 37525 | -3/Quarantine | Cryocooling Duct disabled 37540 | -3/Quarantine | Ambient heat levels rising (+20) 37540 | -3/Quarantine | Non-combat units ordered to evacuate 37712 | -3/Quarantine | Repaired Cmb. Antigrav System 37735 | -3/Quarantine | Repaired Cmb. Antigrav System 37795 | -3/Quarantine | Repaired Cld. Antigrav System 37833 | -3/Quarantine | Repaired Cld. Antigrav System 37930 | -3/Quarantine | Assembled infested ambush trap array 37952 | -3/Quarantine | Incoming assault squad redirected 37999 | -3/Quarantine | Incoming assault squad redirected 38007 | -3/Quarantine | Found Alien Artifact 38007 | -3/Quarantine | Identified Phase Redirector 38092 | -3/Quarantine | Discovered exit to Research (range 20) 38129 | -3/Quarantine | Found Alien Artifact 38129 | -3/Quarantine | Identified Phase Armor 38308 | -3/Quarantine | Spotted Fortress 38340 | -3/Quarantine | Discovered new exit (range 5) 38342 | -3/Quarantine | Identified exit to Section 7 38682 | -3/Quarantine | Entered Section 7 38695 | -3/Section 7 | Found Alien Artifact 38793 | -3/Section 7 | Identified Spacefold Activator 38910 | -3/Section 7 | Repaired Exp. Utility Shielding 39001 | -3/Section 7 | Repaired Enh. Fission Core 39070 | -3/Section 7 | Repaired Cmb. Antigrav System 39124 | -3/Section 7 | Found Alien Artifact 39133 | -3/Section 7 | Identified Microwarp Drive 39476 | -3/Section 7 | Discovered exit to Research (range 15) 39777 | -3/Section 7 | Found Alien Artifact 40056 | -3/Section 7 | Identified Integrated Mediator 40056 | -3/Section 7 | Installed Integrated Mediator, increased core attachment efficiency. 40153 | -3/Section 7 | Repaired Exp. Utility Shielding 40263 | -3/Section 7 | Repaired Cld. Antigrav System 40306 | -3/Section 7 | System corruption reached 10% 40427 | -3/Section 7 | Spotted S7 Guard 40492 | -3/Section 7 | Destroyed S7 Guard 40500 | -3/Section 7 | Found Corrupted Prototype Protection 40500 | -3/Section 7 | Identified Hvy. Regenerative Plating 40527 | -3/Section 7 | Found Alien Artifact 40527 | -3/Section 7 | Identified Core Regenerator 40527 | -3/Section 7 | Used Core Regenerator, restored core integrity (+183) 40791 | -3/Section 7 | Found Alien Artifact 40917 | -3/Section 7 | Spotted Executioner 40918 | -3/Section 7 | Spotted Executioner 40951 | -3/Section 7 | Spotted B-99 Colossus 40982 | -3/Section 7 | Found Alien Artifact 40982 | -3/Section 7 | Identified Integrated Dissipator 40982 | -3/Section 7 | Installed Integrated Dissipator, increased core heat dissipation (+20) 40984 | -3/Section 7 | Found Integrated Dissipator 40984 | -3/Section 7 | Installed Integrated Dissipator, increased core heat dissipation (+20) 40986 | -3/Section 7 | Found Integrated Dissipator 40986 | -3/Section 7 | Installed Integrated Dissipator, increased core heat dissipation (+20) 41008 | -3/Section 7 | Found Alien Artifact 41008 | -3/Section 7 | Identified LRC Storage 41008 | -3/Section 7 | Installed LRC Storage, increased inventory capacity (+2) 41010 | -3/Section 7 | Found Alien Artifact 41010 | -3/Section 7 | Identified LRC Boosters 41010 | -3/Section 7 | Installed LRC Boosters, increased mass support (+10) 41037 | -3/Section 7 | Found Integrated Dissipator 41037 | -3/Section 7 | Installed Integrated Dissipator, increased core heat dissipation (+20) 41097 | -3/Section 7 | Found Transdimensional Reconstructor 41099 | -3/Section 7 | Found Transdimensional Reconstructor 41138 | -3/Section 7 | Destroyed Executioner 41193 | -3/Section 7 | Destroyed Executioner 41310 | -3/Section 7 | Identified Integrity Redistributor 41347 | -3/Section 7 | Entered Research 41347 | -2/Research | Warlord forces began assault on 0b10 41347 | -2/Research | Evolved 2 slots: Propulsion x1, Weapon x1 41360 | -2/Research | Identified exit to Testing 41375 | -2/Research | Met up with Warlord 41457 | -2/Research | Research machine network offline 41468 | -2/Research | Discovered new exit (range 7) 41587 | -2/Research | Found Prototype Processor 41587 | -2/Research | Identified Exp. Melee Analysis Suite 41602 | -2/Research | Found Enh. Force Lance 41652 | -2/Research | Borebot progress halted 41653 | -2/Research | Spotted Striker 41731 | -2/Research | Spotted Executioner 41879 | -2/Research | Build established: Machinist-Gladiator 41900 | -2/Research | Borebot progress halted 41974 | -2/Research | Found Prototype Processor 41974 | -2/Research | Identified Exp. Core Analyzer 41980 | -2/Research | Found Exp. Core Analyzer 42072 | -2/Research | Spotted Striker 42092 | -2/Research | Spotted Striker 42137 | -2/Research | Borebot progress halted 42223 | -2/Research | Spotted Executioner 42412 | -2/Research | Found Prototype Slashing Weapon 42412 | -2/Research | Identified Particle Cleaver 42455 | -2/Research | Warlord invited to help at Command 42485 | -2/Research | Entered Testing 42543 | -2/Testing | Repaired Exp. Utility Shielding 42579 | -2/Testing | Repaired Cmb. Antigrav System 42679 | -2/Testing | Repaired Cmb. Antigrav System 42747 | -2/Testing | Repaired Cmb. Antigrav System? 42848 | -2/Testing | Repaired Exp. Utility Shielding 42907 | -2/Testing | Build established: Hacker-Gladiator 42918 | -2/Testing | Repaired Cmb. Antigrav System 43042 | -2/Testing | Found Prototype Energy Gun 43042 | -2/Testing | Identified Warp Gun 43078 | -2/Testing | Found Prototype Energy Cannon 43078 | -2/Testing | Identified Cld. Nova Cannon 43401 | -2/Testing | Discovered new exit (range 10) 43764 | -2/Testing | Identified exit to Access 43792 | -2/Testing | Entered Access 43792 | -1/Access | Evolved 2 slots: Power x1, Utility x1 43891 | -1/Access | Repaired Cmb. Antigrav System 43944 | -1/Access | Repaired Plasma Lance 43979 | -1/Access | Repaired Adv. Force Field 44197 | -1/Access | Found Antimissile System 44496 | -1/Access | Discovered new exit (range 7) 44499 | -1/Access | Identified exit to Command 44499 | -1/Access | Entered Command 44965 | -1/Command | Repaired Exp. Utility Shielding 44989 | -1/Command | Spotted B-99 Colossus 45068 | -1/Command | System corruption reached 10% 45251 | -1/Command | Phase Generator disabled 45286 | -1/Command | First assault squad dispatched 45369 | -1/Command | Disengaged cave seal 45369 | -1/Command | Derelicts emerged from the dark tunnel 45369 | -1/Command | Welcomed Warlord to Command 45516 | -1/Command | Incoming assault squad redirected 45594 | -1/Command | Incoming assault squad redirected 45707 | -1/Command | Spotted M Guard 45707 | -1/Command | Spotted M Guard 45707 | -1/Command | Spotted Combat Programmer 45716 | -1/Command | Warlord commented on Warlord statues 45761 | -1/Command | Destroyed M Guard 45768 | -1/Command | All MAIN.C guards destroyed 45802 | -1/Command | Incoming assault squad redirected 45903 | -1/Command | Incoming investigation squad redirected 46020 | -1/Command | Build established: Scavenger-Gladiator 46028 | -1/Command | Repaired Exp. Utility Shielding 46066 | -1/Command | Repaired Cmb. Linear Gravjet 46189 | -1/Command | Incoming investigation squad redirected 46304 | -1/Command | Incoming assault squad redirected 46383 | -1/Command | Found Corrupted Prototype Device 46439 | -1/Command | Met MAIN.C 46442 | -1/Command | 0b10 Conduit disabled 46467 | -1/Command | Destroyed MAIN.C Shell 46469 | -1/Command | MAIN.C activated Command garrisons 46505 | -1/Command | Used Integrity Redistributor, redistributed integrity from core (-232) 46521 | -1/Command | Lost 3 parts (1n2w) 46548 | -1/Command | Core integrity fell below 50% 46561 | -1/Command | Failed to warp due to unstable space 46563 | -1/Command | Core integrity fell below 20% 46565 | -1/Command | Destroyed by MAIN.C with Omega Cannon Last Messages --------------- 46558_ Penetrated by Slug. 46558_ Cmb. Antigrav System destroyed. 46558_ Penetrated by Slug. 46558_ Cmb. Antigrav System destroyed. 46559_ Penetrated by Slug. 46559_ Plasma Lance destroyed. 46559_ Knocked back. 46561_ Penetrated by Slug. 46561_ Cmb. Linear Gravjet destroyed. 46561_ Cmb. Antigrav System destroyed. 46561_ Warp failed due to unstable space. 46562_ Acquired 5 matter. 46562_ Slug penetrates Reinforced Barrier. 46562_ Penetrated by Slug. 46562_ Cmb. Antigrav System destroyed. 46562_ Knocked back. 46563_ 0b10 Conduit collapses. 46564_ Slug penetrates Reinforced Barrier. 46565_ 0b10 Conduit collapses. 46565_ Penetrated by Slug. Map ----- +----------------------------------------------------+ | ?????????????????????????????????????????????????? | | ?????????????????????????????????????????????????? | | ?????????????????????????????????????????????????? | | ?????????????????????????????????????????????????? | | ?????????????????????????????????????????????????? | | ?????????????????????????????????????????????????? | | ?????????????????????????????????????????????????? | | ?????????????????????????????????????????????????? | | ?????????????????????????????????????????????????? | | ?????????????????????????????????????????????????? | | ??????????????????????####################???????? | | ??????????????????????""" " #???????? | | ?????????????????????? " #???????? | | ???????????????????#""""" ######### | | ???????????????????#"""""""" / != | | ???????????????????#" " /" ! |! | | ???????????????????#"" " % =%/%" = !! | | ???????????????????#"" "" s %=######### | | ???????????????????# " " s% %M #???????? | | ???????????????????# " ! s%% #???????? | | ???????????????????# " *!!h%h ""#???????? | | ???????????????????#""" !%] ""#???????? | | ???????????????????#"" % =!=% """#???????? | | ???????????????????# "" "#???????? | | ???????????????????# #???????? | | ???????????????????# % @ " " #???????? | | ???????????????????" " " #???????? | | ????????H??????????" " "" #???????? | | ???????????????????" " " #???????? | | ???????????????????# """""" "" ????????? | | ???????????????????# " """ "" """#???????? | | ???????????????????# """ " " ????????? | | ???????????????????#################"###?????????? | | ????????????????????????????????????##???????????? | | ?????????????????????????????????????????????????? | | ?????????????????????????????????????????????????? | | ?????????????????????????????????????????????????? | | ?????????????????????????????????????????????????? | | ?????????????????????????????????????????????????? | | ?????????????????????????????????????????????????? | | ?????????????????????????????????????????????????? | | ?????????????????????????????????????????????????? | | ?????????????????????????????????????????????????? | | ?????????????????????????????????????????????????? | | ?????????????????????????????????????????????????? | | ?????????????????????????????????????????????????? | | ?????????????????????????????????????????????????? | | ?????????????????????????????????????????????????? | | ?????????????????????????????????????????????????? | | ?????????????????????????????????????????????????? | +----------------------------------------------------+ Best States ------------- Heat Dissipation 132 Energy Generation 89 Energy Capacity 950 Matter Stores 300 Matter Capacity 300 Sight Range 23 Robot Scan Range 18 Terrain Scan Range 16 Terrain Scan Density 10 Jamming Range 16 Power Amplification 20 EM Shielding 3 Armor Coverage 1350 Resistance: KI 30 Resistance: EX 50 Propulsion Shielding 66 Utility Shielding 90 Point Defense Rating 240 Weapon Cycling 15 Melee Speed Boost 50 Phase Shifting 15 Evasion (%) 84 Targeting Accuracy 8 Melee Accuracy 20 Core Analysis 8 Armor Integrity Analysis 40 Recoil Reduction 6 Matter Filtering 30 Particle Charging 30 Offensive Hacking 48 Defensive Hacking 20 Authchip Count 5 Trap Extractor Capacity 6 Item Schematics ----------------- Hcp. Storage Unit | -10/Materials | Hacked Assault Rifle | -10/Materials | Hacked Lgt. Armor Plating | -9/Materials | Hacked Imp. Ion Engine | -9/Materials | Scanalyzed Lgt. Treads | -9/Materials | Scanalyzed Adv. Visual Processing Unit | -9/Materials | Scanalyzed Signal Interpreter | -9/Materials | Scanalyzed Adv. Beam Cannon | -9/Materials | Scanalyzed Imp. Light Armor Plating | -9/Materials | Scanalyzed Hacking Suite | -9/Materials | Scanalyzed Mni. Grenade Launcher | -9/Materials | Scanalyzed Airjet | -9/Materials | Scanalyzed Lgt. Nuclear Core | -9/Materials | Scanalyzed Imp. Hover Unit | -9/Materials | Scanalyzed Imp. Trap Extractor | -8/Materials | Scanalyzed Hvy. Assault Cannon | -8/Materials | Hacked ECM Suite | -7/Factory | Scanalyzed Powered Armor | -7/Factory | Hacked Combat Drone Bay | -7/Data Miner | Free Lgt. Regenerative Plating | -7/Data Miner | Free Cld. Aerolev Unit | -7/Data Miner | Free Exp. Propulsion Shielding | -7/Data Miner | Free Prc. Rocket Launcher | -7/Data Miner | Free Linear Gravjet | -7/Data Miner | Free Mni. Drone Bay | -7/Data Miner | Free Enh. Gauss Cannon | -7/Data Miner | Free Carbide Saw | -7/Data Miner | Free KE Penetrator | -7/Data Miner | Free Greatsword | -6/Factory | Hacked Microactuators | -6/Factory | Scanalyzed Exp. Utility Shielding | -6/Factory | Scanalyzed Centrium Medium Armor Plating | -5/Factory | Scanalyzed Cmb. Gravmag System | -5/Factory | Scanalyzed Cmb. Antigrav System | -5/Factory | Hacked Exp. Shield Generator | -5/Factory | Hacked Antimissile System | -5/Factory | Hacked Lrn. Sensor Array | -5/Factory | Hacked Railgun | -5/Factory | Hacked Adv. Force Field | -5/Factory | Hacked Enh. Fission Core | -5/Factory | Scanalyzed Assault Drone Bay | -5/Zhirov | Free Exp. Heat Sink | -5/Zhirov | Free Exp. Optical Array | -5/Zhirov | Free Imp. Arc Thrower | -5/Zhirov | Free Nanoactuators | -4/Factory | Hacked Particle Accelerator | -4/Factory | Scanalyzed Imp. Kinecellerator | -4/Factory | Scanalyzed Adv. Melee Analysis Suite | -3/Research | Scanalyzed Enh. Nova Cannon | -3/Quarantine | Hacked Cmb. Linear Gravjet | -3/Quarantine | Hacked Adv. Actuator Array | -2/Research | Hacked Cld. Antigrav System | -2/Testing | Archive Centrium Greatsword | -2/Testing | Archive Robot Schematics ------------------ W-25 Informer | -7/Data Miner | Free C-17 Slicer | -7/Data Miner | Free R-10 Processor | -7/Data Miner | Free Y-54 Guardian | -7/Data Miner | Free L-41 Fighter | -7/Data Miner | Free Fabricated ------------ Powered Armor | x2 | -7/Factory | Authchip Hvy. Assault Cannon | x1 | -7/Factory | Authchip Airjet | x2 | -7/Factory | Authchip Combat Drone Bay | x1 | -6/Factory | Authchip Combat Drone Bay | x1 | -6/Factory | Authchip Cld. Aerolev Unit | x1 | -6/Factory | Authchip Cmb. Antigrav System | x2 | -5/Factory | Authchip Cmb. Antigrav System | x2 | -5/Factory | Authchip Combat Drone Bay | x1 | -5/Factory | Authchip Lrn. Sensor Array | x1 | -5/Factory Cmb. Antigrav System | x2 | -4/Factory | Authchip Nanoactuators | x2 | -4/Factory | Authchip Assault Drone Bay | x1 | -4/Factory | Authchip Alien Tech Used ----------------- Integrated Reactor Dimensional Node Initializer Sigix Broadsword Phase Redirector Phase Armor Integrated Mediator Core Regenerator Integrated Dissipator LRC Storage LRC Boosters Integrity Redistributor Transdimensional Reconstructor Achievements -------------- Revolutionary Research Sniper Challenges ------------ None Game ------ Seed CatalystSlugCycler Manual? 0 Play Time 10:24:56 Cumulative 61.2 hours Start 2023.11.28 @ 00:57:52 End 2023.12.08 @ 00:37:27 Sessions 47 Manual Loads 0 Difficulty Rogue Special Mode None Game No. 11 Rogue 10 Adventurer 1 Explorer 0 Win Type - Total 2 Types 0/0/2/0/0/0/0/0/0 Lore% 30 Gallery% 49 Achievement% 47 Wizard Run 0 Options --------- ASCII 0 Keyboard 0 Movement Mouse Keybinds 0 Fullscreen 1 Font 18/Smallcaps Map View 76x50 Tactical HUD 1 Map Filters NONE Filters NONE Steam 0 RUN: 94276750-73cf-48b5-ad8c-068769cb7930